{"text_format":"1","workbook":"xlsx","n_sheets":51,"sheets":["Von","ScoreList","BattleSummary","Nats Awards","Potential Cap List","Captain","Campaign Master","Instructions","Master Sheet","Nats Fri TwovTwo","Nats Fri CalebTom","Nats Fri KevVCraig","Nats Fri 1","Nats Thurs Campaign","Nats Thur 1","Nationals Wed Cruiser","Nationals Wed FrenchvNagato","Nationals Wed MattvKevin","Nats Wed 1","Nats Tues Campaign","Nats Tues 1","Nats 1 2","Nats 1 1","MN May 1 2","MN May 1 1","MI June 1 1","MI May 1 3","MI May 1 2","MI May 1 1","MN Sept Sat 3","MN Sept Sat 2","MN Sept Sat 1","MD Sept Sun 1","MD Sept Sat 2","MD Sept Sat 1","NY Oct Sun 1","NY Oct Sat 2","NY Oct Sat 1","TX Nov Sat 2","TX Nov Sat 1","MI Oct Sat 2","MI Oct Sat 1","MI Sept2 Sat 1","MI Sept Sat 3","MI Sept Sat 2","MI Sept Sat 1","MI Aug Sat 3","MI Aug Sat 2","MI Aug Sat 1","MI July Sat 2","MI July Sat 1"],"not_rendered":{"charts":0,"images":55,"macros":1,"external_links":0,"defined_names":52,"comments":0,"pivot_tables":1},"unopened":[],"bounds":{"document_bytes":16777216,"sheet_cells":100000,"rows_first":2000,"rows_last":500,"rows_between":2000,"halvings":0,"cell_chars":16384,"cell_head_chars":4096},"cells_cut":0,"cells_raw":0,"read":"whole","date_system":"1900"}

{"sheet":"Von","index":0,"n_rows":48,"n_cols":5,"rows_kept":48,"cut":false,"hidden":false,"merged":[]}
["Row Labels","Sum of Score",null,null,"List of Battles"]
["Allied",47400,null,null,"MI July"]
["Kas Gaigalas",32220.53513025854,null,null,"MI Aug"]
["Bob Hoernemann",22515.953569139299,null,null,"MI Sept"]
["Kevin Plumer",19982.393363361982,null,null,"MI Sept2"]
["Craig Singer",18267.017457865204,null,null,"MI Oct"]
["Steve Andrews",17241.400597808315,null,null,"TX Nov"]
["Andy Terpstra",15363.793451124646,null,null,"NY Oct"]
["Zach Hoernemann",13307.320021172956,null,null,"MD Sept"]
["Tom Tanner",13099.241309902023,null,null,"MN Sept"]
["Mark Roe",11360.52973459289,null,null,"MI May"]
["Tyler Helland",11274.202898550724,null,null,"MI June"]
["Tom Palmer",11107.483744915417,null,null,"MN May"]
["Rick Whitsell",10019.529785542321,null,null,"Nats"]
["Matt Larson",9606.3722486884144]
["Peter Ellison",9407.536231884058]
["McCoy Helland",8531.5942028985519]
["Caleb Smith",8462.8658010129511]
["Brian Lamb",8416.3258691261708]
["Charley Stephens",8216.3258691261708]
["Axis",8200]
["Sydnee McKinzie",7364.2851354854001]
["Timothy Beckett",7364.2851354854001]
["Ginger Andrews",7221.1913195196084]
["Chris Pearce",6615.4563039087807]
["Matt Andrews",6432.1042231148167]
["Lee McKinzie",6046.4100810278114]
["Will Cover",5251.1145299145301]
["Rob Arena",4932.3529411764703]
["Nate Graham",4778.0757576493315]
["Brian Koehler",4742.09902613957]
["Brandon Graham",4634.7690268194028]
["Marty Hayes",4494.7204968944097]
["Bryan Box",3943.333333333333]
["William Tustin",3464.5921333907409]
["Carl Camurati",3342.2222222222222]
["Kevin Sundberg",3249.918369710681]
["Isaac McKinzie",3241.9663752035217]
["David Simmons",2857.7777777777778]
["Weston Dodge",2728.8888888888887]
["Michael Smith",2574.2920227920231]
["Robert Stalnaker",2153.5697664207937]
["Holly Moore",1370]
["John Zaruba",290]
["Andrew Le",226.15384615384613]
["Ted Buehring",70]
["(blank)"]
["Grand Total",403389.99999999994]

{"sheet":"ScoreList","index":1,"n_rows":310,"n_cols":11,"rows_kept":310,"cut":false,"hidden":false,"merged":[]}
["Event ID","Battle ID","Battle Type","Captain","Class","Score","Damage","Sink","All Sorties","Individual Pts"]
["MI July","Sat 1","Fleet","Kas Gaigalas",6,1700,820,0,1]
["MI July","Sat 1","Fleet","Weston Dodge",4,680,1340,1,0]
["MI July","Sat 1","Fleet","Craig Singer",5,777.6,650,0,1]
["MI July","Sat 1","Fleet","Will Cover",4,691.2,850,0,1]
["MI July","Sat 1","Fleet","Mark Roe",4,691.2,880,0,1]
["MI July","Sat 2","Fleet","Kas Gaigalas",6,2561.1111111111113,730,0,1]
["MI July","Sat 2","Fleet","Weston Dodge",4,2048.8888888888887,790,0,1]
["MI July","Sat 2","Fleet","Will Cover",4,467.69230769230774,1220,0,1]
["MI July","Sat 2","Fleet","Mark Roe",4,467.69230769230774,500,0,1]
["MI July","Sat 2","Fleet","Craig Singer",6,184.61538461538464,2890,1,1]
["MI Aug","Sat 1","Fleet","Craig Singer",6,377.77777777777777,720,0,1]
["MI Aug","Sat 1","Fleet","Mark Roe",4,640,300,0,1]
["MI Aug","Sat 1","Fleet","Will Cover",4,302.22222222222223,720,0,1]
["MI Aug","Sat 1","Fleet","Kas Gaigalas",6,800,380,0,1]
["MI Aug","Sat 2","Fleet","Mark Roe",4,702.22222222222217,810,0,1]
["MI Aug","Sat 2","Fleet","Craig Singer",6,877.77777777777783,620,0,1]
["MI Aug","Sat 2","Fleet","Will Cover",4,335.55555555555554,1020,0,1]
["MI Aug","Sat 2","Fleet","Kas Gaigalas",6,794.44444444444446,560,0,1]
["MI Aug","Sat 3","Fleet","Craig Singer",6,438.88888888888891,850,0,1]
["MI Aug","Sat 3","Fleet","Will Cover",4,351.11111111111109,590,0,1]
["MI Aug","Sat 3","Fleet","Mark Roe",4,640,260,0,1]
["MI Aug","Sat 3","Fleet","Kas Gaigalas",6,800,530,0,1]
["MI Sept","Sat 1","Fleet","Kas Gaigalas",6,1994.4444444444446,440,0,1]
["MI Sept","Sat 1","Fleet","Mark Roe",4,1595.5555555555554,980,0,1]
["MI Sept","Sat 1","Fleet","Craig Singer",6,710,1360,0,1]
["MI Sept","Sat 1","Fleet","Will Cover",6,510,2230,1,1]
["MI Sept","Sat 2","Fleet","Will Cover",6,500,2150,1,1]
["MI Sept","Sat 2","Fleet","Craig Singer",6,700,1040,0,1]
["MI Sept","Sat 2","Fleet","Kas Gaigalas",6,1772.2222222222224,640,0,1]
["MI Sept","Sat 2","Fleet","Mark Roe",4,1417.7777777777776,760,0,1]
["MI Sept","Sat 3","Fleet","Craig Singer",6,494.44444444444446,3340,1,1]
["MI Sept","Sat 3","Fleet","Mark Roe",4,555.55555555555554,270,0,1]
["MI Sept","Sat 3","Fleet","Kas Gaigalas",6,2005.5555555555557,340,0,1]
["MI Sept","Sat 3","Fleet","Will Cover",4,1604.4444444444443,910,0,1]
["MI Sept2","Sat 1","Fleet","Kas Gaigalas",6,1570,670,0,1]
["MI Sept2","Sat 1","Fleet","Craig Singer",6,352.63157894736838,630,0,1]
["MI Sept2","Sat 1","Fleet","Mark Roe",5,317.36842105263156,940,0,1]
["MI Oct","Sat 1","Fleet","Kas Gaigalas",2,106.15384615384616,20,0,1]
["MI Oct","Sat 1","Fleet","Andrew Le",3,123.84615384615384,70,0,1]
["MI Oct","Sat 1","Fleet","Mark Roe",4,90,230,0,1]
["MI Oct","Sat 2","Fleet","Andrew Le",3,102.30769230769231,10,0,1]
["MI Oct","Sat 2","Fleet","Kas Gaigalas",2,87.692307692307693,80,0,1]
["MI Oct","Sat 2","Fleet","Mark Roe",4,90,190,0,1]
["TX Nov","Sat 1","Fleet","Ted Buehring",3,70,290,0,1]
["TX Nov","Sat 1","Fleet","John Zaruba",2,290,70,0,1]
["TX Nov","Sat 2","Fleet","Ted Buehring",3,0,580,0,1]
["TX Nov","Sat 2","Fleet","John Zaruba",2,0,50,0,1]
["NY Oct","Sat 1","Fleet","Steve Andrews",4,792.94117647058818,1570,1,1]
["NY Oct","Sat 1","Fleet","David Simmons",4,1720,950,0,1]
["NY Oct","Sat 1","Fleet","Rob Arena",5,917.05882352941171,1870,1,1]
["NY Oct","Sat 1","Fleet","Carl Camurati",4,1720,1160,0,1]
["NY Oct","Sat 2","Fleet","David Simmons",4,1000,3060,2,1]
["NY Oct","Sat 2","Fleet","Carl Camurati",4,1200,1050,0,1]
["NY Oct","Sat 2","Fleet","Steve Andrews",4,1934.1176470588234,790,0,1]
["NY Oct","Sat 2","Fleet","Rob Arena",5,1775.8823529411766,1610,1,1]
["NY Oct","Sun 1","Fleet","David Simmons",4,137.77777777777777,1520,1,1]
["NY Oct","Sun 1","Fleet","Rob Arena",5,2239.4117647058824,400,0,1]
["NY Oct","Sun 1","Fleet","Steve Andrews",4,1990.5882352941176,360,0,1]
["NY Oct","Sun 1","Fleet","Carl Camurati",7,422.22222222222223,2710,0,1]
["MD Sept","Sat 1","Fleet","Steve Andrews",4,1136.8421052631579,2080,1,1]
["MD Sept","Sat 1","Fleet","Nate Graham",1,782.85714285714278,30,0,1]
["MD Sept","Sat 1","Fleet","Tom Tanner",4,568.42105263157896,1870,1,0]
["MD Sept","Sat 1","Fleet","Tom Tanner",3,672.36842105263156,1260,1,0]
["MD Sept","Sat 1","Fleet","Ginger Andrews",3,672.36842105263156,270,0,0]
["MD Sept","Sat 1","Fleet","Kevin Plumer",5,1761.4285714285716,2180,0,1]
["MD Sept","Sat 1","Fleet","Holly Moore",3,1370,10,0,1]
["MD Sept","Sat 1","Fleet","Marty Hayes",4,1365.7142857142856,1430,1,1]
["MD Sept","Sat 2","Fleet","Ginger Andrews",3,1310.4000000000001,100,0,1]
["MD Sept","Sat 2","Fleet","Matt Andrews",5,884.8,1140,0,1]
["MD Sept","Sat 2","Fleet","Steve Andrews",4,1348.5714285714284,1070,0,1]
["MD Sept","Sat 2","Fleet","Marty Hayes",4,1348.5714285714284,690,0,1]
["MD Sept","Sat 2","Fleet","Nate Graham",1,137.14285714285711,400,1,0]
["MD Sept","Sat 2","Fleet","Nate Graham",1,337.14285714285711,0,0,0]
["MD Sept","Sat 2","Fleet","Kevin Plumer",5,1684.8,3480,0,1]
["MD Sept","Sat 2","Fleet","Tom Tanner",4,1148.5714285714284,2520,1,1]
["MD Sept","Sun 1","Fleet","Ginger Andrews",3,1.1368683772161603E-13,10,0,0]
["MD Sept","Sun 1","Fleet","Tom Tanner",4,1834.782608695652,2470,1,1]
["MD Sept","Sun 1","Fleet","Steve Andrews",4,1634.782608695652,2470,1,1]
["MD Sept","Sun 1","Fleet","Nate Graham",1,800,20,0,1]
["MD Sept","Sun 1","Fleet","Matt Andrews",5,1800.0000000000002,2150,0,1]
["MD Sept","Sun 1","Fleet","Kevin Plumer",5,1600.0000000000002,3670,1,1]
["MD Sept","Sun 1","Fleet","Marty Hayes",3,1780.4347826086957,160,0,1]
["MN Sept","Sat 1","Fleet","Tyler Helland",6,1642.4242424242425,1390,0,1]
["MN Sept","Sat 1","Fleet","Andy Terpstra",5,2606.0869565217395,1930,0,1]
["MN Sept","Sat 1","Fleet","Bob Hoernemann",4,2316.5217391304345,3360,0,1]
["MN Sept","Sat 1","Fleet","Tom Palmer",4,1113.939393939394,2110,1,1]
["MN Sept","Sat 1","Fleet","Peter Ellison",4,1113.939393939394,2340,1,1]
["MN Sept","Sat 1","Fleet","McCoy Helland",3,1149.6969696969697,820,0,1]
["MN Sept","Sat 1","Fleet","Rick Whitsell",2,1737.391304347826,130,0,1]
["MN Sept","Sat 2","Fleet","Tyler Helland",6,2254.5454545454545,850,0,1]
["MN Sept","Sat 2","Fleet","Andy Terpstra",5,2962.1739130434785,2230,0,1]
["MN Sept","Sat 2","Fleet","Bob Hoernemann",4,2433.0434782608695,4590,1,1]
["MN Sept","Sat 2","Fleet","Tom Palmer",4,1603.6363636363637,2800,1,1]
["MN Sept","Sat 2","Fleet","Peter Ellison",4,1603.6363636363637,2450,1,1]
["MN Sept","Sat 2","Fleet","Rick Whitsell",2,1774.782608695652,620,1,1]
["MN Sept","Sat 2","Fleet","McCoy Helland",3,1378.1818181818182,1470,1,1]
["MN Sept","Sat 3","Fleet","Tyler Helland",6,3436.3636363636365,1980,0,1]
["MN Sept","Sat 3","Fleet","Andy Terpstra",5,2390.434782608696,3370,1,1]
["MN Sept","Sat 3","Fleet","Bob Hoernemann",4,2102.608695652174,7950,2,1]
["MN Sept","Sat 3","Fleet","Tom Palmer",4,2749.090909090909,2080,0,1]
["MN Sept","Sat 3","Fleet","Peter Ellison",4,2749.090909090909,2010,0,1]
["MN Sept","Sat 3","Fleet","Rick Whitsell",2,1726.9565217391305,20,0,1]
["MN Sept","Sat 3","Fleet","McCoy Helland",3,2405.4545454545455,550,0,1]
["MI May","1 1","Fleet","Craig Singer",6,278.9473684210526,720,0,1]
["MI May","1 1","Fleet","Mark Roe",5,51.052631578947341,1860,1,1]
["MI May","1 1","Fleet","Kas Gaigalas",6,2580,530,0,1]
["MI May","1 2","Fleet","Craig Singer",6,515.78947368421052,470,0,1]
["MI May","1 2","Fleet","Mark Roe",5,464.21052631578942,1110,0,1]
["MI May","1 2","Fleet","Kas Gaigalas",6,1580,980,0,1]
["MI May","1 2","Fleet","Craig Singer",6,515.78947368421052,470,0,1]
["MI May","1 2","Fleet","Mark Roe",5,464.21052631578942,1110,0,1]
["MI May","1 2","Fleet","Kas Gaigalas",6,1580,980,0,1]
["MI May","1 2","Fleet","Craig Singer",6,515.78947368421052,470,0,1]
["MI May","1 2","Fleet","Mark Roe",5,464.21052631578942,1110,0,1]
["MI May","1 2","Fleet","Kas Gaigalas",6,1580,980,0,1]
["MI May","1 3","Fleet","Craig Singer",6,378.9473684210526,730,0,1]
["MI May","1 3","Fleet","Mark Roe",5,341.05263157894734,1020,0,1]
["MI May","1 3","Fleet","Kas Gaigalas",6,1750,720,0,1]
["MI June","1 1","Fleet","Mark Roe",5,2368.4210526315787,1080,0,1]
["MI June","1 1","Fleet","Kas Gaigalas",6,2631.5789473684208,470,0,1]
["MI June","1 1","Fleet","Craig Singer",6,661.1111111111112,2730,1,1]
["MI June","1 1","Fleet","Will Cover",4,488.8888888888888,2270,1,1]
["MN May","1 1","Fleet","Bob Hoernemann",6,2385.1851851851852,2000,1,1]
["MN May","1 1","Fleet","Bryan Box",5,2126.6666666666665,1400,1,1]
["MN May","1 1","Fleet","Zach Hoernemann",4,1868.1481481481478,1780,1,1]
["MN May","1 1","Fleet","Tyler Helland",4,1601.7391304347825,3420,1,1]
["MN May","1 1","Fleet","Peter Ellison",4,1601.7391304347825,1970,1,1]
["MN May","1 1","Fleet","McCoy Helland",3,1376.521739130435,1590,1,1]
["MN May","1 2","Fleet","Bob Hoernemann",6,2240.7407407407404,2000,0,1]
["MN May","1 2","Fleet","Bryan Box",5,1816.6666666666665,2910,2,1]
["MN May","1 2","Fleet","Zach Hoernemann",4,1592.5925925925924,2390,1,1]
["MN May","1 2","Fleet","Tyler Helland",4,2339.1304347826085,3100,1,1]
["MN May","1 2","Fleet","Peter Ellison",4,2339.1304347826085,2730,1,1]
["MN May","1 2","Fleet","McCoy Helland",3,2221.739130434783,220,0,1]
["Nats","1 1","Fleet","Kevin Sundberg",4,987.40740740740739,70,0,1,null,{"$f":"IF(H136=1,0,G136)","v":70}]
["Nats","1 1","Fleet","Ginger Andrews",3,863.98148148148141,920,0,1,null,920]
["Nats","1 1","Fleet","William Tustin",6,617.12962962962956,2840,1,0,null,0]
["Nats","1 1","Fleet","Nate Graham",1,493.7037037037037,10,0,1,null,10]
["Nats","1 1","Fleet","Brandon Graham",4,987.40740740740739,1300,0,1,null,1300]
["Nats","1 1","Fleet","Tom Palmer",5,1110.8333333333333,800,0,1,null,800]
["Nats","1 1","Fleet","Rick Whitsell",2,740.55555555555554,330,0,1,null,330]
["Nats","1 1","Fleet","Kas Gaigalas",6,1234.2592592592591,1430,0,1,null,1430]
["Nats","1 1","Fleet","Brian Koehler",2,740.55555555555554,50,0,1,null,50]
["Nats","1 1","Fleet","Robert Stalnaker",5,910.83333333333326,1300,1,1,null,0]
["Nats","1 1","Fleet","Caleb Smith",4,787.40740740740739,3070,1,1,null,0]
["Nats","1 1","Fleet","Chris Pearce",4,800.86956521739125,20,0,0,null,20]
["Nats","1 1","Fleet","Matt Andrews",6,234.25925925925912,1130,0,1,null,1130]
["Nats","1 1","Fleet","Charley Stephens",4,1601.7391304347825,1430,0,1,null,1430]
["Nats","1 1","Fleet","Isaac McKinzie",1,800.86956521739125,250,0,1,null,250]
["Nats","1 1","Fleet","Bob Hoernemann",6,1702.1739130434783,2260,1,1,null,0]
["Nats","1 1","Fleet","Andy Terpstra",4,1401.7391304347825,1180,0,1,null,1180]
["Nats","1 1","Fleet","Sydnee McKinzie",3,1401.521739130435,290,0,1,null,290]
["Nats","1 1","Fleet","Matt Larson",6,1802.1739130434783,1830,1,1,null,0]
["Nats","1 1","Fleet","Zach Hoernemann",4,1601.7391304347825,730,0,1,null,730]
["Nats","1 1","Fleet","Timothy Beckett",3,1401.521739130435,130,0,1,null,130]
["Nats","1 1","Fleet","Brian Lamb",4,1601.7391304347825,570,0,1,null,570]
["Nats","1 1","Fleet","Tom Tanner",4,1401.7391304347825,440,0,1,null,440]
["Nats","1 1","Fleet","Steve Andrews",4,787.40740740740739,3170,1,1,null,0]
["Nats","1 1","Fleet","Craig Singer",6,1802.1739130434783,4200,1,1,null,0]
["Nats","1 1","Fleet","Kevin Plumer",7,1234.2592592592591,2000,0,1,null,2000]
["Nats","1 2","Fleet","Craig Singer",6,1800,1330,0,1,null,1330]
["Nats","1 2","Fleet","Caleb Smith",4,721.27853881278531,1550,0,1,null,1550]
["Nats","1 2","Fleet","Steve Andrews",4,921.27853881278531,1140,0,1,null,1140]
["Nats","1 2","Fleet","Tom Palmer",5,836.43835616438355,3220,1,1,null,0]
["Nats","1 2","Fleet","William Tustin",5,836.43835616438355,2480,1,1,null,0]
["Nats","1 2","Fleet","Bob Hoernemann",6,1600,1460,1,1,null,0]
["Nats","1 2","Fleet","Charley Stephens",4,1440,830,0,1,null,830]
["Nats","1 2","Fleet","Andy Terpstra",4,1240,3450,1,1,null,0]
["Nats","1 2","Fleet","Ginger Andrews",3,806.11872146118719,320,0,1,null,320]
["Nats","1 2","Fleet","Brandon Graham",4,921.27853881278531,810,0,1,null,810]
["Nats","1 2","Fleet","Kevin Sundberg",4,921.27853881278531,30,0,1,null,30]
["Nats","1 2","Fleet","Matt Andrews",5,418.21917808219177,2620,1,0,null,0]
["Nats","1 2","Fleet","Kevin Plumer",7,1151.5981735159817,1150,0,1,null,1150]
["Nats","1 2","Fleet","Tom Tanner",4,1440,370,0,1,null,370]
["Nats","1 2","Fleet","Brian Koehler",5,836.43835616438355,1780,1,1,null,0]
["Nats","1 2","Fleet","Zach Hoernemann",3,630,150,0,0,null,150]
["Nats","1 2","Fleet","Zach Hoernemann",4,720,1200,1,0,null,0]
["Nats","1 2","Fleet","Matt Larson",6,1600,870,0,1,null,870]
["Nats","1 2","Fleet","Robert Stalnaker",5,836.43835616438355,1210,1,1,null,0]
["Nats","1 2","Fleet","Rick Whitsell",2,690.95890410958896,90,0,1,null,90]
["Nats","1 2","Fleet","Nate Graham",1,460.63926940639266,150,0,1,null,150]
["Nats","1 2","Fleet","Brian Lamb",4,1440,1270,0,1,null,1270]
["Nats","1 2","Fleet","Kas Gaigalas",6,951.59817351598167,640,0,1,null,640]
["Nats","1 2","Fleet","Sydnee McKinzie",3,1260,380,0,1,null,380]
["Nats","1 2","Fleet","Timothy Beckett",3,1260,200,0,1,null,200]
["Nats","1 2","Fleet","Isaac McKinzie",1,520,490,1,1,null,0]
["Nats","1 2","Fleet","Chris Pearce",4,1240,610,0,1,null,610]
["Nats","Tues 1","Fleet","Andy Terpstra",4,1477.6000000000001,2070,0,1,null,2070]
["Nats","Tues 1","Fleet","William Tustin",6,773.6559139784946,2650,1,0,null,0]
["Nats","Tues 1","Fleet","Tom Tanner",4,1477.6000000000001,820,0,1,null,820]
["Nats","Tues 1","Fleet","Tom Palmer",5,1392.5806451612902,910,0,1,null,910]
["Nats","Tues 1","Fleet","Kevin Sundberg",4,618.92473118279577,1130,1,0,null,0]
["Nats","Tues 1","Fleet","Brian Lamb",4,1477.6000000000001,760,0,1,null,760]
["Nats","Tues 1","Fleet","Brian Koehler",5,1392.5806451612902,270,0,1,null,270]
["Nats","Tues 1","Fleet","Rick Whitsell",2,928.38709677419354,790,0,1,null,790]
["Nats","Tues 1","Fleet","Brandon Graham",4,1237.8494623655915,1820,0,1,null,1820]
["Nats","Tues 1","Fleet","Ginger Andrews",3,1083.1182795698926,390,0,1,null,390]
["Nats","Tues 1","Fleet","Charley Stephens",4,1477.6000000000001,1370,0,1,null,1370]
["Nats","Tues 1","Fleet","Lee McKinzie",5,1662.3,870,0,1,null,{"$f":"IF(H200=1,0,G200)","v":870}]
["Nats","Tues 1","Fleet","Matt Andrews",6,773.6559139784946,1900,1,0,null,0]
["Nats","Tues 1","Fleet","Chris Pearce",4,877.60000000000014,1190,1,1,null,0]
["Nats","Tues 1","Fleet","Timothy Beckett",3,1292.9000000000001,180,0,1,null,180]
["Nats","Tues 1","Fleet","Isaac McKinzie",1,738.80000000000007,30,0,1,null,30]
["Nats","Tues 1","Fleet","Nate Graham",1,618.92473118279577,180,0,1,null,180]
["Nats","Tues 1","Fleet","Sydnee McKinzie",3,1292.9000000000001,170,0,1,null,170]
["Nats","Tues 1","Fleet","Matt Larson",6,1847,750,0,1,null,750]
["Nats","Tues 1","Fleet","Bob Hoernemann",6,1847,2010,0,1,null,2010]
["Nats","Tues 1","Fleet","Steve Andrews",4,1037.8494623655915,2400,1,1,null,0]
["Nats","Tues 1","Fleet","Caleb Smith",4,1037.8494623655915,2400,1,1,null,0]
["Nats","Tues 1","Fleet","Kas Gaigalas",6,1547.3118279569892,1000,0,1,null,1000]
["Nats","Tues 1","Fleet","Craig Singer",6,923.5,1820,1,0,null,0]
["Nats","Tues 1","Fleet","Kevin Plumer",7,1547.3118279569892,2630,0,1,null,2630]
["Nats","Tues 1","Fleet","Zach Hoernemann",4,1477.6000000000001,2350,0,1,null,2350]
["Nats","Tues Campaign","Fleet","Allied",8,24850,0,0,0,null,0]
["Nats","Tues Campaign","Fleet","Axis",8,5100,0,0,0,null,0]
["Nats","Wed 1","Fleet","Craig Singer",6,514.03508771929819,1320,0,1,null,1320]
["Nats","Wed 1","Fleet","Kas Gaigalas",6,483.87096774193549,680,0,1,null,680]
["Nats","Wed 1","Fleet","Kevin Plumer",4,387.09677419354836,30,0,1,null,30]
["Nats","Wed 1","Fleet","Sydnee McKinzie",3,359.82456140350877,80,0,1,null,80]
["Nats","Wed 1","Fleet","Brian Lamb",4,411.22807017543857,290,0,1,null,290]
["Nats","Wed 1","Fleet","Chris Pearce",4,411.22807017543857,80,0,1,null,80]
["Nats","Wed 1","Fleet","Timothy Beckett",3,359.82456140350877,10,0,1,null,10]
["Nats","Wed 1","Fleet","Brian Koehler",5,435.48387096774195,0,0,1,null,0]
["Nats","Wed 1","Fleet","Rick Whitsell",2,290.32258064516128,70,0,1,null,70]
["Nats","Wed 1","Fleet","Lee McKinzie",5,462.63157894736838,140,0,1,null,140]
["Nats","Wed 1","Fleet","Steve Andrews",4,387.09677419354836,150,0,1,null,150]
["Nats","Wed 1","Fleet","Charley Stephens",4,411.22807017543857,1080,0,1,null,1080]
["Nats","Wed 1","Fleet","Nate Graham",1,193.54838709677418,30,0,1,null,30]
["Nats","Wed 1","Fleet","Caleb Smith",4,387.09677419354836,1170,0,1,null,1170]
["Nats","Wed 1","Fleet","Kevin Plumer",5,435.48387096774195,800,0,1,null,800]
["Nats","Wed MattvKevin","Individual","Kevin Plumer",5,1910,180,0,1,1730,180]
["Nats","Wed MattvKevin","Individual","Matt Andrews",5,-20,1910,1,1,0,0]
["Nats","Wed FrenchvNagato","Mini-Fleet","Steve Andrews",4,1605,110,0,1,1280,110]
["Nats","Wed FrenchvNagato","Mini-Fleet","Caleb Smith",4,1605,540,0,1,1280,540]
["Nats","Wed FrenchvNagato","Mini-Fleet","Craig Singer",6,450,3210,1,1,0,0]
["Nats","Wed Cruiser","Mini-Fleet","Michael Smith",2,664,2470,2,1,null,2470]
["Nats","Wed Cruiser","Mini-Fleet","Kevin Plumer",2,1655.5555555555554,960,0,1,null,960]
["Nats","Wed Cruiser","Mini-Fleet","Caleb Smith",1,576,30,0,1,null,30]
["Nats","Wed Cruiser","Mini-Fleet","Steve Andrews",3,1931.4814814814813,1030,0,1,null,1030]
["Nats","Wed Cruiser","Mini-Fleet","Bob Hoernemann",3,1731.4814814814813,1650,1,1,null,0]
["Nats","Wed Cruiser","Mini-Fleet","Ginger Andrews",3,1008,530,0,1,null,530]
["Nats","Wed Cruiser","Mini-Fleet","Tom Palmer",3,808,3580,2,1,null,3580]
["Nats","Wed Cruiser","Mini-Fleet","Rick Whitsell",2,864,840,0,1,null,840]
["Nats","Wed Cruiser","Mini-Fleet","Zach Hoernemann",3,1931.4814814814813,680,0,1,null,680]
["Nats","Thur 1","Fleet","Steve Andrews",3,632.01923076923072,1920,0,1,null,1920]
["Nats","Thur 1","Fleet","Caleb Smith",4,522.30769230769238,3590,1,1,null,0]
["Nats","Thur 1","Fleet","Michael Smith",6,902.88461538461547,1750,0,1,null,1750]
["Nats","Thur 1","Fleet","Kas Gaigalas",6,902.88461538461547,1140,0,1,null,1140]
["Nats","Thur 1","Fleet","Craig Singer",6,2554.2857142857142,1270,0,1,null,1270]
["Nats","Thur 1","Fleet","Matt Andrews",5,406.29807692307691,2350,1,0,null,0]
["Nats","Thur 1","Fleet","William Tustin",6,451.44230769230774,3060,1,0,null,0]
["Nats","Thur 1","Fleet","Kevin Sundberg",4,722.30769230769238,130,0,1,null,130]
["Nats","Thur 1","Fleet","Isaac McKinzie",1,821.71428571428578,560,1,1,null,0]
["Nats","Thur 1","Fleet","Sydnee McKinzie",3,1788,260,0,1,null,260]
["Nats","Thur 1","Fleet","Nate Graham",1,361.15384615384619,10,0,1,null,10]
["Nats","Thur 1","Fleet","Timothy Beckett",3,1788,60,0,1,null,60]
["Nats","Thur 1","Fleet","Brandon Graham",4,522.30769230769238,3080,1,1,null,0]
["Nats","Thur 1","Fleet","Rick Whitsell",2,541.73076923076928,290,0,1,null,290]
["Nats","Thur 1","Fleet","Chris Pearce",4,2043.4285714285716,1050,0,1,null,1050]
["Nats","Thur 1","Fleet","Brian Koehler",5,612.59615384615381,1720,1,1,null,0]
["Nats","Thur 1","Fleet","Andy Terpstra",4,1843.4285714285716,760,0,1,null,760]
["Nats","Thur 1","Fleet","Bob Hoernemann",6,2354.2857142857142,2180,0,1,null,2180]
["Nats","Thur 1","Fleet","Zach Hoernemann",4,2043.4285714285716,600,0,1,null,{"$f":"IF(H264=1,0,G264)","v":600}]
["Nats","Thur 1","Fleet","Tom Palmer",5,406.29807692307691,2110,1,0,null,0]
["Nats","Thur 1","Fleet","Brian Lamb",4,2043.4285714285716,340,0,1,null,340]
["Nats","Thur 1","Fleet","Tom Tanner",4,2043.4285714285716,510,0,1,null,510]
["Nats","Thur 1","Fleet","Robert Stalnaker",5,406.29807692307691,1080,1,0,null,0]
["Nats","Thur 1","Fleet","Ginger Andrews",3,632.01923076923072,1590,0,1,null,1590]
["Nats","Thur 1","Fleet","Kevin Plumer",3,316.00961538461536,460,0,0,null,460]
["Nats","Thur 1","Fleet","Kevin Plumer",7,451.44230769230774,2540,1,0,null,0]
["Nats","Thur 1","Fleet","Charley Stephens",4,2043.4285714285716,820,0,1,null,820]
["Nats","Thur 1","Fleet","Matt Larson",6,2554.2857142857142,620,0,1,null,620]
["Nats","Thur 1","Fleet","Lee McKinzie",5,2298.8571428571427,360,0,1,null,360]
["Nats","Thurs Campaign","Fleet","Allied",8,22550,0,0,0,null,0]
["Nats","Thurs Campaign","Fleet","Axis",8,3100,0,0,0,null,0]
["Nats","Fri 1","Fleet","Ginger Andrews",3,845.18518518518511,110,0,1,null,110]
["Nats","Fri 1","Fleet","Craig Singer",6,1002.9126213592233,600,0,1,null,600]
["Nats","Fri 1","Fleet","Zach Hoernemann",4,1442.3300970873786,1240,0,1,null,1240]
["Nats","Fri 1","Fleet","Kas Gaigalas",6,1207.4074074074074,550,0,1,null,550]
["Nats","Fri 1","Fleet","Charley Stephens",4,1242.3300970873786,910,0,1,null,910]
["Nats","Fri 1","Fleet","Tom Tanner",4,1242.3300970873786,2140,1,1,null,0]
["Nats","Fri 1","Fleet","Timothy Beckett",3,1262.0388349514562,100,0,1,null,100]
["Nats","Fri 1","Fleet","Caleb Smith",4,765.92592592592587,3440,1,1,null,0]
["Nats","Fri 1","Fleet","William Tustin",4,765.92592592592587,1670,1,1,null,0]
["Nats","Fri 1","Fleet","Brian Koehler",2,724.44444444444446,340,0,1,null,340]
["Nats","Fri 1","Fleet","Brian Lamb",4,1442.3300970873786,480,0,1,null,480]
["Nats","Fri 1","Fleet","Rick Whitsell",2,724.44444444444446,50,0,1,null,50]
["Nats","Fri 1","Fleet","Nate Graham",1,482.96296296296293,0,0,1,null,0]
["Nats","Fri 1","Fleet","Michael Smith",6,1007.4074074074074,4330,1,1,null,0]
["Nats","Fri 1","Fleet","Bob Hoernemann",6,1802.9126213592233,1780,0,1,null,1780]
["Nats","Fri 1","Fleet","Isaac McKinzie",1,360.58252427184465,600,1,0,null,0]
["Nats","Fri 1","Fleet","Kevin Plumer",7,1207.4074074074074,1160,0,1,null,1160]
["Nats","Fri 1","Fleet","Matt Andrews",5,543.33333333333326,2640,1,0,null,0]
["Nats","Fri 1","Fleet","Matt Larson",6,1802.9126213592233,800,0,1,null,800]
["Nats","Fri 1","Fleet","Brandon Graham",4,965.92592592592587,3020,0,1,null,3020]
["Nats","Fri 1","Fleet","Andy Terpstra",4,1442.3300970873786,1050,0,1,null,1050]
["Nats","Fri 1","Fleet","Chris Pearce",4,1242.3300970873786,240,0,1,null,240]
["Nats","Fri 1","Fleet","Tom Palmer",5,1086.6666666666665,1260,0,1,null,1260]
["Nats","Fri 1","Fleet","Sydnee McKinzie",3,1262.0388349514562,350,0,1,null,350]
["Nats","Fri 1","Fleet","Lee McKinzie",5,1622.6213592233009,1120,0,1,null,1120]
["Nats","Fri 1","Fleet","Steve Andrews",1,482.96296296296293,0,0,1,null,{"$f":"IF(H302=1,0,G302)","v":0}]
["Nats","Fri KevVCraig","Individual","Kevin Plumer",5,4640,1640,0,1,3000]
["Nats","Fri KevVCraig","Individual","Craig Singer",6,1440,4640,1,1,0]
["Nats","Fri CalebTom","Individual","Caleb Smith",4,2060,1270,0,1,{"$f":"F305-F306","v":790}]
["Nats","Fri CalebTom","Individual","Tom Tanner",4,1270,2060,0,1]
["Nats","Fri TwovTwo","Mini-Fleet","Matt Andrews",5,1391.5384615384614,280,0,1,1163.0769230769231]
["Nats","Fri TwovTwo","Mini-Fleet","William Tustin",4,20,1880,1,1,0]
["Nats","Fri TwovTwo","Mini-Fleet","Nate Graham",1,110,130,0,1,0]
["Nats","Fri TwovTwo","Mini-Fleet","Steve Andrews",1,618.46153846153845,50,0,1,516.92307692307691]

{"sheet":"BattleSummary","index":2,"n_rows":37,"n_cols":46,"rows_kept":37,"cut":false,"hidden":false,"merged":[[6,0,6,6]]}
["Event",null,null,null,null,null,null,null,"Award","Captain","Score","Tie?",null,null,"List of Battles",null,"Points","Class",null,null,null,null,null,null,null,null,"Battles","Class",null,null,null,null,null,null,null,"Average","Class",null,null,null,null,null,null,null,"Individual"]
[null,null,null,null,null,null,null,null,"Individual ","N/A",0,"Yes",null,null,"MI July",null,"Captain",1,2,3,4,5,6,7,null,null,"Captain",1,2,3,4,5,6,7,null,"Captain",1,2,3,4,5,6,7,null,"Captain","Points"]
["Fleet Battles",8,null,null,null,null,null,null,"Most Damaged (w/ sink)","Michael Smith",4330,null,null,null,"MI Aug",null,"Kevin Sundberg",null,null,null,3249.918369710681,null,null,null,null,null,"Kevin Sundberg",null,null,null,4,null,null,null,null,"Kevin Sundberg",null,null,null,406.23979621383512,null,null,null,null,"Kevin Sundberg",0]
[null,null,null,null,null,null,null,null,"Most Damaged (w/o sink)","Brandon Graham",3020,null,null,null,"MI Sept",null,"Ginger Andrews",null,null,4230.4228984669771,null,null,null,null,null,null,"Ginger Andrews",null,null,5,null,null,null,null,null,"Ginger Andrews",null,null,423.04228984669771,null,null,null,null,null,"Ginger Andrews",0]
[null,null,null,null,null,null,null,null,null,null,null,null,null,null,"MI Sept2",null,"William Tustin",null,null,null,765.92592592592587,836.43835616438355,1842.2278513004317,null,null,null,"William Tustin",null,null,null,1,1,3,null,null,"William Tustin",null,null,null,382.96296296296293,418.21917808219177,307.03797521673863,null,null,"William Tustin",0]
[null,null,null,null,null,null,null,null,null,null,null,null,null,null,"MI Oct",null,"Nate Graham",2610.9329005064756,null,null,null,null,null,null,null,null,"Nate Graham",6,null,null,null,null,null,null,null,"Nate Graham",217.57774170887296,null,null,null,null,null,null,null,"Nate Graham",0]
["Fleet Battle Summary",null,null,null,null,null,null,null,"High Sortie Average","Captain","Score","No. of Captains","Tie?",null,"TX Nov",null,"Brandon Graham",null,null,null,4634.7690268194028,null,null,null,null,null,"Brandon Graham",null,null,null,5,null,null,null,null,"Brandon Graham",null,null,null,463.47690268194026,null,null,null,null,"Brandon Graham",0]
["Battle","Fleet 1","Fleet 1 Score","Fleet 2","Fleet 2 Score","Winning Fleet","Points Difference",null,"Class 1","Isaac McKinzie",324.19663752035217,3,"No",null,"NY Oct",null,"Tom Palmer",null,null,null,null,4832.8170782487505,null,null,null,null,"Tom Palmer",null,null,null,null,5,null,null,null,"Tom Palmer",null,null,null,null,483.28170782487507,null,null,null,"Tom Palmer",0]
["1 1","Allied",12329.9990234375,"Axis",17920.001953125,"Axis",5590.0029296875,null,"Class 2","Brian Koehler",366.25,2,"No",null,"MD Sept",null,"Rick Whitsell",null,3916.3993507597133,null,null,null,null,null,null,null,"Rick Whitsell",null,6,null,null,null,null,null,null,"Rick Whitsell",null,326.36661256330945,null,null,null,null,null,null,"Rick Whitsell",0]
["1 2","Allied",12110.0009765625,"Axis",16790,"Axis",4679.9990234375,null,"Class 3","Sydnee McKinzie",613.69042795711664,6,"Yes",null,"MN Sept",null,"Kas Gaigalas",null,null,null,null,null,6327.3322512661889,null,null,null,"Kas Gaigalas",null,null,null,null,null,6,null,null,"Kas Gaigalas",null,null,null,null,null,527.27768760551578,null,null,"Kas Gaigalas",0]
["Tues 1","Allied",14190,"Axis",18070,"Axis",3880,null,"Class 4","Tom Tanner",760.50977989507328,12,"No",null,"MI May",null,"Brian Koehler",null,1465,null,null,3277.0990261395696,null,null,null,null,"Brian Koehler",null,2,null,null,4,null,null,null,"Brian Koehler",null,366.25,null,null,409.63737826744619,null,null,null,"Brian Koehler",0]
["Tues Campaign","Allied",24850,"Axis",5100,"Allied",19750,null,"Class 5","Lee McKinzie",755.80126012847643,7,"No",null,"MI June",null,"Robert Stalnaker",null,null,null,null,2153.5697664207937,null,null,null,null,"Robert Stalnaker",null,null,null,null,3,null,null,null,"Robert Stalnaker",null,null,null,null,358.9282944034656,null,null,null,"Robert Stalnaker",0]
["Wed 1","Allied",3000,"Axis",2930,"Allied",70,null,"Class 6","Matt Larson",960.63722486884149,7,"No",null,"MN May",null,"Caleb Smith",null,null,null,4221.8658010129511,null,null,null,null,null,"Caleb Smith",null,null,null,6,null,null,null,null,"Caleb Smith",null,null,null,351.82215008441261,null,null,null,null,"Caleb Smith",0]
["Thur 1","Allied",9390,"Axis",26419.998046875,"Axis",17029.998046875,null,"Class 7","Kevin Plumer",559.20189758319452,1,"No",null,"Nats",null,"Chris Pearce",null,null,null,6615.4563039087807,null,null,null,null,null,"Chris Pearce",null,null,null,6,null,null,null,null,"Chris Pearce",null,null,null,551.28802532573172,null,null,null,null,"Chris Pearce",0]
["Thurs Campaign","Allied",22550,"Axis",3100,"Allied",19450,null,null,null,null,null,null,null,null,null,"Matt Andrews",null,null,null,null,1367.8505883386019,1007.9151732377537,null,null,null,"Matt Andrews",null,null,null,null,3,2,null,null,"Matt Andrews",null,null,null,null,227.97509805643367,251.97879330943843,null,null,"Matt Andrews",0]
["Fri 1","Allied",11410,"Axis",17370.001953125,"Axis",5960.001953125,null,null,null,null,null,null,null,null,null,"Charley Stephens",null,null,null,8216.3258691261708,null,null,null,null,null,"Charley Stephens",null,null,null,6,null,null,null,null,"Charley Stephens",null,null,null,{"$f":"U16/(2*AE16)","v":684.69382242718086},null,null,null,null,"Charley Stephens",0]
[null,null,null,null,null,null,null,null,null,null,null,null,null,null,null,null,"Isaac McKinzie",3241.9663752035217,null,null,null,null,null,null,null,null,"Isaac McKinzie",5,null,null,null,null,null,null,null,"Isaac McKinzie",324.19663752035217,null,null,{"$f":"U17/(2*AE17)","v":{"$error":"#DIV/0!"}},null,null,null,null,"Isaac McKinzie",0]
[null,null,null,null,null,null,null,null,null,null,null,null,null,null,null,null,"Bob Hoernemann",null,null,null,null,null,9306.3722486884144,null,null,null,"Bob Hoernemann",null,null,null,null,null,5,null,null,"Bob Hoernemann",null,null,null,{"$error":"#DIV/0!"},null,930.63722486884149,null,null,"Bob Hoernemann",0]
[null,null,null,null,null,null,null,null,null,null,null,null,null,null,null,null,"Andy Terpstra",null,null,null,7405.0977989507328,null,null,null,null,null,"Andy Terpstra",null,null,null,6,null,null,null,null,"Andy Terpstra",null,null,null,617.09148324589444,null,null,null,null,"Andy Terpstra",0]
[null,null,null,null,null,null,null,null,null,null,null,null,null,null,null,null,"Sydnee McKinzie",null,null,7364.2851354854001,null,null,null,null,null,null,"Sydnee McKinzie",null,null,6,null,null,null,null,null,"Sydnee McKinzie",null,null,613.69042795711664,{"$error":"#DIV/0!"},null,null,null,null,"Sydnee McKinzie",0]
[null,null,null,null,null,null,null,null,null,null,null,null,null,null,null,null,"Matt Larson",null,null,null,null,null,9606.3722486884144,null,null,null,"Matt Larson",null,null,null,null,null,5,null,null,"Matt Larson",null,null,null,{"$error":"#DIV/0!"},null,960.63722486884149,null,null,"Matt Larson",0]
[null,null,null,null,null,null,null,null,null,null,null,null,null,null,null,null,"Zach Hoernemann",null,null,630,7285.0977989507328,null,null,null,null,null,"Zach Hoernemann",null,null,1,6,null,null,null,null,"Zach Hoernemann",null,null,315,607.09148324589444,null,null,null,null,"Zach Hoernemann",0]
[null,null,null,null,null,null,null,null,null,null,null,null,null,null,null,null,"Timothy Beckett",null,null,7364.2851354854001,null,null,null,null,null,null,"Timothy Beckett",null,null,6,null,null,null,null,null,"Timothy Beckett",null,null,613.69042795711664,{"$error":"#DIV/0!"},null,null,null,null,"Timothy Beckett",0]
[null,null,null,null,null,null,null,null,null,null,null,null,null,null,null,null,"Brian Lamb",null,null,null,8416.3258691261708,null,null,null,null,null,"Brian Lamb",null,null,null,6,null,null,null,null,"Brian Lamb",null,null,null,701.3604890938476,null,null,null,null,"Brian Lamb",0]
[null,null,null,null,null,null,null,null,null,null,null,null,null,null,null,null,"Tom Tanner",null,null,null,7605.0977989507328,null,null,null,null,null,"Tom Tanner",null,null,null,6,null,null,null,null,"Tom Tanner",null,null,null,633.75814991256107,null,null,null,null,"Tom Tanner",0]
[null,null,null,null,null,null,null,null,null,null,null,null,null,null,null,null,"Steve Andrews",482.96296296296293,null,632.01923076923072,3133.6321827793327,null,null,null,null,null,"Steve Andrews",1,null,1,4,null,null,null,null,"Steve Andrews",241.48148148148147,null,316.00961538461536,391.70402284741658,null,null,null,null,"Steve Andrews",0]
[null,null,null,null,null,null,null,null,null,null,null,null,null,null,null,null,"Craig Singer",null,null,null,null,null,8596.9073364077121,null,null,null,"Craig Singer",null,null,null,null,null,6,null,null,"Craig Singer",null,null,null,null,null,716.40894470064268,null,null,"Craig Singer",0]
[null,null,null,null,null,null,null,null,null,null,null,null,null,null,null,null,"Kevin Plumer",null,null,316.00961538461536,387.09677419354836,435.48387096774195,null,5592.0189758319448,null,null,"Kevin Plumer",null,null,1,1,1,null,5,null,"Kevin Plumer",null,null,158.00480769230768,193.54838709677418,217.74193548387098,null,559.20189758319452,null,"Kevin Plumer",0]
[null,null,null,null,null,null,null,null,null,null,null,null,null,null,null,null,"Lee McKinzie",null,null,null,null,6046.4100810278114,null,null,null,null,"Lee McKinzie",null,null,null,null,4,null,null,null,"Lee McKinzie",null,null,null,null,{"$f":"V29/12","v":503.86750675231764},null,null,null,"Lee McKinzie",0]
[null,null,null,null,null,null,null,null,null,null,null,null,null,null,null,null,"Allied",null,null,null,null,null,null,null,47400,null,"Allied",null,null,null,null,null,null,null,2,"Allied",null,null,null,null,null,null,null,null,"Allied",0]
[null,null,null,null,null,null,null,null,null,null,null,null,null,null,null,null,"Axis",null,null,null,null,null,null,null,8200,null,"Axis",null,null,null,null,null,null,null,2,"Axis",null,null,null,null,null,null,null,null,"Axis",0]
[null,null,null,null,null,null,null,null,null,null,null,null,null,null,null,null,"Michael Smith",null,null,null,null,null,1910.2920227920229,null,null,null,"Michael Smith",null,null,null,null,null,2,null,null,"Michael Smith",null,null,null,null,null,477.57300569800572,null,null,"Michael Smith",0]
[]
[]
[]
[]
[null,null,null,null,null,null,null,null,null,null,null,null,null,null,null,null,null,null,null,null,null,null,null,null,null,null,null,null,null,null,null,null,null,null,null,null,null,null,null,{"$f":"U25/AN25","v":12}]

{"sheet":"Nats Awards","index":3,"n_rows":27,"n_cols":11,"rows_kept":27,"cut":false,"hidden":false,"merged":[]}
["Awards",null,null,null,"Battle","Fleet 1","Fleet 1 Score","Fleet 2","Fleet 2 Score","Winning Fleet","Points Difference"]
["Fleet Award","Allied",null,null,"Monday AM","Allied",12329.9990234375,"Axis",17920.001953125,"Axis",5590.0029296875]
["Class 1","Isaac M.",null,null,"Monday PM","Allied",12110.0009765625,"Axis",16790,"Axis",4679.9990234375]
["Class 2","N/A",null,null,"Tues 1","Allied",14190,"Axis",18070,"Axis",3880]
["Class 3","Sydnee M. / Tim B.",null,null,"Tues Campaign","Allied",24850,"Axis",5100,"Allied",19750]
["Class 4","Brian L.",null,null,"Wed 1","Allied",3000,"Axis",2930,"Allied",70]
["Class 5","Lee M.",null,null,"Thur 1","Allied",9390,"Axis",26419.998046875,"Axis",17029.998046875]
["Class 6","Matt L.",null,null,"Thurs Campaign","Allied",22550,"Axis",3100,"Allied",19450]
["Class 7","N/A",null,null,"Fri 1","Allied",11410,"Axis",17370.001953125,"Axis",5960.001953125]
["Von Fluegel","Kas G."]
["Best of Scale Warship","Brian K. - QE"]
["Best of Scale Convoy","Tom P. - Saratoga"]
["Brian Spychalski Award","Will T.",null,null,"Total","Allied",{"$f":"SUM(G2:G12)","v":109830},"Axis",{"$f":"SUM(I2:I12)","v":107700.001953125},{"$f":"IF(G13>I13,F13,H13)","v":"Allied"},{"$f":"ABS(G13-I13)","v":2129.998046875}]
["Fire Stick Award","Will T."]
["Individual Combat Trophy","Kevin P."]
["Life Line Award","Tom P. - Saratoga"]
["Most Damaged Sunk","Mike S. - NC - 137-38-40"]
["Most Damaged NOT Sunk","Brandon G. - Courbet - 44-15-76"]
["Ring of Death","N/A"]
["Allied Most Feared","Kevin P. - Missouri"]
["Axis Most Feared","Isaac M - Capitani"]
["Rookie of the Year","Caleb S."]
["Axis Spirit","Craig S."]
["Allied Spirit","Kevin P."]
["Technology Award","Will T."]
["Most Spectacular Sink","Matt A. - NC"]
["Best Ram","Chris P. "]

{"sheet":"Potential Cap List","index":4,"n_rows":114,"n_cols":3,"rows_kept":114,"cut":false,"hidden":false,"merged":[]}
["Captains 2019","Present?","Current Member?"]
["Andy Terpstra",1,"y"]
["Bob Hoernemann",1,"y"]
["Brian Koehler",1,"y"]
["Brian Lamb",1,"y"]
["Caleb Smith",1,"y"]
["Charley Stephens",1,"y"]
["Chris Pearce",1,"y"]
["Craig Singer",1,"y"]
["Ginger Andrews",1,"y"]
["Isaac McKinzie",1,"y"]
["Kas Gaigalas",1,"y"]
["Kevin Plumer",1,"y"]
["Lee McKinzie",1,"y"]
["Matt Andrews",1,"y"]
["Michael Smith",1,"y"]
["Nate Graham",1,"y"]
["Rick Whitsell",1,"y"]
["Robert Stalnaker",1,"y"]
["Steve Andrews",1,"y"]
["Sydnee McKinzie",1,"y"]
["Timothy Beckett",1,"y"]
["Tom Palmer",1,"y"]
["Tom Tanner",1,"y"]
["William Tustin",1,"y"]
["Zach Hoernemann",1,"y"]
["Brandon Graham",1,"y"]
["Matt Larson",1,"y"]
["Kevin Sundberg",1,"y"]
["Andrew Le",null,"y"]
["Austin Stephens",null,"y"]
["Barry Tighe",null,"y"]
["Bill Byrnes",null,"y"]
["Bob Amend",null,"y"]
["Brandon Smith",null,"y"]
["Brennen Schultz",null,"y"]
["Bryan Box",null,"y"]
["Cameron Hunt",null,"y"]
["Carl Bitondo",null,"y"]
["Carl Camurati",null,"y"]
["Chase Hargraves",null,"y"]
["Chris Kessler",null,"y"]
["Christopher Gaigalas",null,"y"]
["Christopher Koehler",null,"y"]
["D.W. Fluegel",null,"y"]
["David Haynes",null,"y"]
["David Ranier",null,"y"]
["David Simmons",null,"y"]
["David Vogtman",null,"y"]
["Don Cole",null,"y"]
["Eric Bitondo",null,"y"]
["Erik Helland",null,"y"]
["Evan Fowler",null,"y"]
["Gary Powell",null,"y"]
["Gerald Roberts",null,"y"]
["Hadrian Tucker",null,"y"]
["Heiko Dewald",null,"y"]
["Holly Moore",null,"n"]
["Hudson Maiers",null,"y"]
["Jack Alvenus",null,"y"]
["James Foster",null,"y"]
["Jason Pagegala",null,"y"]
["Jason Schafer",null,"y"]
["Jeff Lide",null,"y"]
["Jeff Lipp",null,"y"]
["Jeffrey Poindexter",null,"y"]
["Joel Goodman",null,"y"]
["John Jones",null,"y"]
["John Kriner",null,"y"]
["John Zaruba",null,"y"]
["Johnny Adams",null,"y"]
["Justin Ragucci",null,"y"]
["Justin Stalnaker",null,"y"]
["Karl Smith",null,"y"]
["Ken Arena",null,"y"]
["Ken Kelly",null,"y"]
["Kyle Scott",null,"y"]
["Lewis Beckett",null,"y"]
["Lou Meszaros",null,"y"]
["Mark Kuntz",null,"y"]
["Mark Lide",null,"y"]
["Mark Roe",null,"y"]
["Marty Hayes",null,"y"]
["Mary Tighe",null,"y"]
["Matthew Webb",null,"y"]
["McCoy Helland",null,"y"]
["Michael Butts",null,"y"]
["Michael Pagegala",null,"y"]
["Michael Tanzillo",null,"y"]
["Michael Thomas",null,"y"]
["Mike Mangus",null,"y"]
["Nathan Thompson",null,"y"]
["Nick Myers",null,"y"]
["Paul Rye",null,"y"]
["Peter Ellison",null,"y"]
["Philip Pace",null,"y"]
["Plato Avramides",null,"y"]
["Randy Stiponovich",null,"y"]
["Rebecca Tustin",null,"y"]
["Rick King",null,"y"]
["Rick Schultz",null,"y"]
["Rob Arena",null,"y"]
["Robert Neumann",null,"y"]
["Ron Hunt",null,"y"]
["Sara Carter",null,"y"]
["Stan Watkins",null,"y"]
["Steve Crane",null,"y"]
["Ted Buehring",null,"y"]
["Travis Chezick",null,"y"]
["Trey Schultz",null,"y"]
["Tyler Helland",null,"y"]
["Wade Koehn",null,"y"]
["Weston Dodge",null,"y"]
["Will Cover",null,"y"]

{"sheet":"Captain","index":5,"n_rows":39,"n_cols":8,"rows_kept":39,"cut":false,"hidden":false,"merged":[]}
["Captian","Ship","Class","Units",null,null,null,"Enter \"Convoy\" for campaign battles"]
["Andy Terpstra","Kongo",4,4.5]
["Bob Hoernemann","Nagato",6,6]
["Brian Koehler","QE",5,5.5]
["Brian Lamb","Seydlitz",4,4.5]
["Caleb Smith","Courbet",4,4.5]
["Charley Stephens","Seydlitz",4,4.5]
["Chris Pearce","Seydlitz",4,4.5]
["Craig Singer","Nagato",6,6]
["Ginger Andrews","Des Moines",3,3.5]
["Isaac McKinzie","Capitani Romani",1,1.5]
["Kas Gaigalas","Washington",6,6]
["Kevin Plumer","Missouri",7,8]
["Lee McKinzie","Baden",5,5.5]
["Matt Andrews","NC",6,6]
["Michael Smith","NC",6,6]
["Nate Graham","Gearing",1,1.5]
["Rick Whitsell","Jamaica",2,2.5]
["Robert Stalnaker","Revenge",5,5.5]
["Steve Andrews","Courbet",4,4.5]
["Sydnee McKinzie","Radetzky",3,3.5]
["Timothy Beckett","Foch",3,3]
["Tom Palmer","Warspite",5,5.5]
["Tom Tanner","Ostfriesland",4,4]
["William Tustin","Jean Bart",6,6.5]
["Zach Hoernemann","Kongo",4,4.5]
["Brandon Graham","NC",6,6]
["Matt Larson","Nagato",6,6]
["Kevin Sundberg","Invincible",4,4]
["Justin Ragucci","Ajax",2,2.5]
[null,"Lutzow",3,3.5]
[null,"Agincourt",5,5.5]
[null,"Iron Duke",5,5]
[null,"West Virginia",5,5.5]
[null,"Fiji",2,2.5]
[null,"Suffern",3,3]
[null,"Torielle",2,2.5]
[null,"Tromp",1,1.5]
[null,"Connecticut",3,3.5]

{"sheet":"Campaign Master","index":6,"n_rows":17,"n_cols":43,"rows_kept":17,"cut":false,"hidden":false,"merged":[]}
[null,null,null,null,null,null,null,null,"Winner:",{"$f":"IF(K2>K3, B2, IF(K3>K2, B3, \"Tie\"))","v":"Tie"},null,null,"Battle Location and Month (i.e. MD May)","Nats",null,"Convoy Runs",null,null,null,null,null,null,"Sinks",null,null,null,null,null,"Convoy Friendly Ram",null,null,null,null,null,null,"Ram Penalties"]
["Fleet 1 :","Allied",null,null,null,"Fleet Points:",{"$f":"B15","v":0},"Fleet Penalties:",{"$f":"B16","v":0},"Fleet Score:",{"$f":"B17","v":0},null,"Battle Day","Tues",null,"Captain","Fleet","Ship","Ship Length","Number of Runs","Points",null,"Captain","Fleet","Ship","Class","Sink Points",null,"Ramming Captain","Fleet","Convoy Ship","Convoy Captain","Ship Length","Points",null,"Ramming Captain","Fleet","Ram Type","Rammed Captain","Rammed Ship","Rammed Ship Class","Ram Sink","Points"]
["Fleet 2 :","Axis",null,null,null,"Fleet Points:",{"$f":"C15","v":0},"Fleet Penalties:",{"$f":"C16","v":0},"Fleet Score:",{"$f":"C17","v":0}]
[]
["Fleet:",{"$f":"B2","v":"Allied"},{"$f":"B3","v":"Axis"}]
["Targets Remaining:"]
["Target Points:"]
["Convoy Run Points:"]
["Scuttled Convoy Points:"]
["Sink Points:"]
["Convoy Friendly Ram Points:"]
["Ram Penalty Points:"]
["No Ship on Water Points:"]
["Convoy Run Every 10 Min Points:"]
["Total Points:",{"$f":"B7+B8+B9+B10+B11+B13+B14","v":0},{"$f":"C7+C8+C9+C10+C11+C13+C14","v":0}]
["Total Penalties:",{"$f":"B12","v":0},{"$f":"C12","v":0}]
["Fleet Score:",{"$f":"B15-B16","v":0},{"$f":"C15-C16","v":0}]

{"sheet":"Instructions","index":7,"n_rows":13,"n_cols":2,"rows_kept":13,"cut":false,"hidden":false,"merged":[[8,1,8,11],[10,0,10,10],[12,0,12,6],[1,0,1,12],[3,0,3,15],[5,0,5,7],[7,0,7,12]]}
[]
["Ensure that all participating captains/ships are entered into the Captian Tab."]
[]
["Make a COPY of the \"Master Score Sheet\" tab and rename it to the name of the battle to be scored."]
[]
["Enter Opposing Fleet Names into Cells B2 & B3"]
[]
["Use the \"Enter Score\" button to enter the socres for ALL battlers in the battle."]
[null,"DO NOT CLOSE THE WINDOW UNTIL ALL SCORES ARE ENTERED"]
[]
["Use the \"Calculate Totals\" button to finish the scoring of the battle"]
[]
["The Winner will be displayed in Cell J1"]

{"sheet":"Master Sheet","index":8,"n_rows":4,"n_cols":20,"rows_kept":4,"cut":false,"hidden":false,"merged":[]}
[null,null,null,null,null,null,null,null,"Winner:",{"$f":"IF(K2>K3, B2, IF(K3>K2, B3, \"Tie\"))","v":"Allied"},null,"Battle Type","Battle Location and Month (i.e. MD May)",null,null,null,null,null,"Fleet"]
["Fleet 1 :","Allied",null,"Fleet Units:",8,"Fleet Weight:",10,"Fleet Battle Damage:",600,"Fleet Score:",1800,null,"Battle Day",null,null,null,null,null,"Mini-Fleet"]
["Fleet 2 :","Axis",null,"Fleet Units:",8,"Fleet Weight:",10,"Fleet Battle Damage:",1800,"Fleet Score:",600,null,"Battle Number",null,null,null,null,null,"Individual"]
["Captian","Ship","Fleet","Class","Units","Above","On","Below","Sinks","Participate all Sorties","Penalties Points","2nd Sortie Sink","Damage Points","Scored By","Notes","Weight Factor","Weight Points","Captian","Captain Points","Indiv Points"]

{"sheet":"Nats Fri TwovTwo","index":9,"n_rows":8,"n_cols":20,"rows_kept":8,"cut":false,"hidden":false,"merged":[]}
[null,null,null,null,null,null,null,null,"Winner:",{"$f":"IF(K2>K3, B2, IF(K3>K2, B3, \"Tie\"))","v":"No Flag"},null,"Battle Type","Battle Location and Month (i.e. MD May)","Nats",null,null,null,null,"Fleet"]
["Fleet 1 :","Flag",null,"Fleet Units:",5.5,"Fleet Weight:",12,"Fleet Battle Damage:",2010,"Fleet Score:",330,null,"Battle Day","Fri",null,null,null,null,"Mini-Fleet"]
["Fleet 2 :","No Flag",null,"Fleet Units:",6.5,"Fleet Weight:",13,"Fleet Battle Damage:",330,"Fleet Score:",2010,null,"Battle Number","TwovTwo",null,null,null,null,"Individual"]
["Captian","Ship","Fleet","Class","Units","Above","On","Below","Sinks","Participate all Sorties","Penalties Points","2nd Sortie Sink","Damage Points","Scored By","Notes","Weight Factor","Weight Points","Captian","Captain Points","Indiv Points"]
["Matt Andrews","Iron Duke","No Flag",5,5,17,1,3,0,1,0,0,280,"Matt","None,None,None",9,1391.5384615384614,"Matt Andrews",1391.5384615384614,1163.0769230769231]
["William Tustin","Invincible","Flag",4,4,45,3,19,1,1,0,1,1880,"Matt","None,None,None",8,220,"William Tustin",20,0]
["Nate Graham","Gearing","Flag",1,1.5,5,1,2,0,1,0,0,130,"Nate","None,None,None",4,110,"Nate Graham",110,0]
["Steve Andrews","Tromp","No Flag",1,1.5,5,0,0,0,1,0,0,50,"Steve","None,None,None",4,618.46153846153845,"Steve Andrews",618.46153846153845,516.92307692307691]

{"sheet":"Nats Fri CalebTom","index":10,"n_rows":6,"n_cols":20,"rows_kept":6,"cut":false,"hidden":false,"merged":[]}
[null,null,null,null,null,null,null,null,"Winner:",{"$f":"IF(K2>K3, B2, IF(K3>K2, B3, \"Tie\"))","v":"Caleb"},null,"Battle Type","Battle Location and Month (i.e. MD May)","Nats",null,null,null,null,"Fleet"]
["Fleet 1 :","Caleb",null,"Fleet Units:",4.5,"Fleet Weight:",8,"Fleet Battle Damage:",1270,"Fleet Score:",2060,null,"Battle Day","Fri",null,null,null,null,"Mini-Fleet"]
["Fleet 2 :","Tom",null,"Fleet Units:",4,"Fleet Weight:",8,"Fleet Battle Damage:",2060,"Fleet Score:",1270,null,"Battle Number","CalebTom",null,null,null,null,"Individual"]
["Captian","Ship","Fleet","Class","Units","Above","On","Below","Sinks","Participate all Sorties","Penalties Points","2nd Sortie Sink","Damage Points","Scored By","Notes","Weight Factor","Weight Points","Captian","Captain Points","Indiv Points"]
["Caleb Smith","Courbet","Caleb",4,4.5,53,10,18,0,1,0,0,1270,"Tom","None,None,None",8,2060,"Caleb Smith",2060]
["Tom Tanner","Ostfriesland","Tom",4,4,55,14,41,0,1,0,0,2060,"Caleb","None,None,None",8,1270,"Tom Tanner",1270]

{"sheet":"Nats Fri KevVCraig","index":11,"n_rows":6,"n_cols":20,"rows_kept":6,"cut":false,"hidden":false,"merged":[]}
[null,null,null,null,null,null,null,null,"Winner:",{"$f":"IF(K2>K3, B2, IF(K3>K2, B3, \"Tie\"))","v":"Kevin"},null,"Battle Type","Battle Location and Month (i.e. MD May)","Nats",null,null,null,null,"Fleet"]
["Fleet 1 :","Kevin",null,"Fleet Units:",5.5,"Fleet Weight:",9,"Fleet Battle Damage:",1640,"Fleet Score:",4640,null,"Battle Day","Fri",null,null,null,null,"Mini-Fleet"]
["Fleet 2 :","Craig",null,"Fleet Units:",6,"Fleet Weight:",10,"Fleet Battle Damage:",4640,"Fleet Score:",1640,null,"Battle Number","KevVCraig",null,null,null,null,"Individual"]
["Captian","Ship","Fleet","Class","Units","Above","On","Below","Sinks","Participate all Sorties","Penalties Points","2nd Sortie Sink","Damage Points","Scored By","Notes","Weight Factor","Weight Points","Captian","Captain Points","Indiv Points"]
["Kevin Plumer","Agincourt","Kevin",5,5.5,66,16,22,0,1,0,0,1640,"Craig","None,None,None",9,4640,"Kevin Plumer",4640,3000]
["Craig Singer","Nagato","Craig",6,6,59,10,95,1,1,0,1,4640,"Kevin","None,None,None",10,1640,"Craig Singer",1440,0]

{"sheet":"Nats Fri 1","index":12,"n_rows":30,"n_cols":20,"rows_kept":30,"cut":false,"hidden":false,"merged":[]}
[null,null,null,null,null,null,null,null,"Winner:",{"$f":"IF(K2>K3, B2, IF(K3>K2, B3, \"Tie\"))","v":"Axis"},null,"Battle Type","Battle Location and Month (i.e. MD May)","Nats",null,null,null,null,"Fleet"]
["Fleet 1 :","Allied",null,"Fleet Units:",55,"Fleet Weight:",94.5,"Fleet Battle Damage:",18570,"Fleet Score:",11410,null,"Battle Day","Fri",null,null,null,null,"Mini-Fleet"]
["Fleet 2 :","Axis",null,"Fleet Units:",58,"Fleet Weight:",103,"Fleet Battle Damage:",11410,"Fleet Score:",17370.001953125,null,"Battle Number",1,null,null,null,null,"Individual"]
["Captian","Ship","Fleet","Class","Units","Above","On","Below","Sinks","Participate all Sorties","Penalties Points","2nd Sortie Sink","Damage Points","Scored By","Notes","Weight Factor","Weight Points","Captian","Captain Points","Indiv Points"]
["Ginger Andrews","Des Moines","Allied",3,3.5,3,1,2,0,1,0,0,110,"Andy","None,None,None",7,845.18518518518511,"Ginger Andrews",845.18518518518511]
["Craig Singer","Nagato","Axis",6,6,13,4,13,0,1,800,0,600,"Kas","Ram Sink Courbet,None,None",10,1002.9126213592233,"Craig Singer",1002.9126213592233]
["Zach Hoernemann","Kongo","Axis",4,4.5,41,4,25,0,1,0,0,1240,"Brandon","None,None,None",8,1442.3300970873786,"Zach Hoernemann",1442.3300970873786]
["Kas Gaigalas","Washington","Allied",6,6,15,2,12,0,1,0,0,550,"Craig","None,None,None",10,1207.4074074074074,"Kas Gaigalas",1207.4074074074074]
["Charley Stephens","Seydlitz","Axis",4,4.5,19,6,20,0,1,200,0,910,"Caleb","Ram Below Brandon,None,None",8,1242.3300970873786,"Charley Stephens",1242.3300970873786]
["Tom Tanner","Ostfriesland","Axis",4,4,35,9,27,1,1,0,1,2140,"Matt","None,None,None",8,1442.3300970873786,"Tom Tanner",1242.3300970873786]
["Timothy Beckett","Foch","Axis",3,3,3,2,1,0,1,0,0,100,"Rick","None,None,None",7,1262.0388349514562,"Timothy Beckett",1262.0388349514562]
["Caleb Smith","Courbet","Allied",4,4.5,112,28,32,1,1,0,1,3440,"Charley","None,None,None",8,965.92592592592587,"Caleb Smith",765.92592592592587]
["William Tustin","Invincible","Allied",4,4,20,11,15,1,1,0,1,1670,"Lee","None,None,None",8,965.92592592592587,"William Tustin",765.92592592592587]
["Brian Koehler","Ajax","Allied",2,2.5,15,2,5,0,1,0,0,340,"Brian","None,None,None",6,724.44444444444446,"Brian Koehler",724.44444444444446]
["Brian Lamb","Seydlitz","Axis",4,4.5,13,4,9,0,1,0,0,480,"Brian K","None,None,None",8,1442.3300970873786,"Brian Lamb",1442.3300970873786]
["Rick Whitsell","Jamaica","Allied",2,2.5,3,1,0,0,1,0,0,50,"Tim","None,None,None",6,724.44444444444446,"Rick Whitsell",724.44444444444446]
["Nate Graham","Gearing","Allied",1,1.5,0,0,0,0,1,0,0,0,"Lee","None,None,None",4,482.96296296296293,"Nate Graham",482.96296296296293]
["Michael Smith","NC","Allied",6,6,137,38,40,1,1,0,1,4330,"Tim ","None,None,None",10,1207.4074074074074,"Michael Smith",1007.4074074074074]
["Bob Hoernemann","Nagato","Axis",6,6,32,10,42,0,1,0,0,1780,"Kevin","None,None,None",10,1802.9126213592233,"Bob Hoernemann",1802.9126213592233]
["Isaac McKinzie","Capitani Romani","Axis",1,1.5,8,6,0,1,0,0,0,600,"Steve","None,None,None",2,360.58252427184465,"Isaac McKinzie",360.58252427184465]
["Kevin Plumer","Missouri","Allied",7,8,32,12,20,0,1,0,0,1160,"Bob","None,None,None",10,1207.4074074074074,"Kevin Plumer",1207.4074074074074]
["Matt Andrews","Iron Duke","Allied",5,5,54,12,32,1,0,0,0,2640,"Tom","None,None,None",4.5,543.33333333333326,"Matt Andrews",543.33333333333326]
["Matt Larson","Nagato","Axis",6,6,37,2,13,0,1,0,0,800,"Nate","None,None,None",10,1802.9126213592233,"Matt Larson",1802.9126213592233]
["Brandon Graham","Courbet","Allied",4,4.5,44,15,76,0,1,0,0,3020,"Zach","None,None,None",8,965.92592592592587,"Brandon Graham",965.92592592592587]
["Andy Terpstra","Kongo","Axis",4,4.5,52,4,15,0,1,0,0,1050,"Kevin","None,None,None",8,1442.3300970873786,"Andy Terpstra",1442.3300970873786]
["Chris Pearce","Seydlitz","Axis",4,4.5,11,2,3,0,1,200,0,240,"Tom","Ram Below,None,None",8,1242.3300970873786,"Chris Pearce",1242.3300970873786]
["Tom Palmer","Warspite","Allied",5,5.5,43,13,19,0,1,0,0,1260,"Chris","None,None,None",9,1086.6666666666665,"Tom Palmer",1086.6666666666665]
["Sydnee McKinzie","Radetzky","Axis",3,3.5,7,8,4,0,1,0,0,350,"Ginger","None,None,None",7,1262.0388349514562,"Sydnee McKinzie",1262.0388349514562]
["Lee McKinzie","Baden","Axis",5,5.5,34,12,18,0,1,0,0,1120,"Ginger","None,None,None",9,1622.6213592233009,"Lee McKinzie",1622.6213592233009]
["Steve Andrews","Tromp","Allied",1,1.5,0,0,0,0,1,0,0,0,"Lee","None,None,None",4,482.96296296296293,"Steve Andrews",482.96296296296293]

{"sheet":"Nats Thurs Campaign","index":13,"n_rows":17,"n_cols":43,"rows_kept":17,"cut":false,"hidden":false,"merged":[]}
[null,null,null,null,null,null,null,null,"Winner:",{"$f":"IF(K2>K3, B2, IF(K3>K2, B3, \"Tie\"))","v":"Allied"},null,null,"Battle Location and Month (i.e. MD May)","Nats",null,"Convoy Runs",null,null,null,null,null,null,"Sinks",null,null,null,null,null,"Convoy Friendly Ram",null,null,null,null,null,null,"Ram Penalties"]
["Fleet 1 :","Allied",null,null,null,"Fleet Points:",{"$f":"B15","v":22550},"Fleet Penalties:",{"$f":"B16","v":0},"Fleet Score:",{"$f":"B17","v":22550},null,"Battle Day","Thurs",null,"Captain","Fleet","Ship","Ship Length","Number of Runs","Points",null,"Captain","Fleet","Ship","Class","Sink Points",null,"Ramming Captain","Fleet","Convoy Ship","Convoy Captain","Ship Length","Points",null,"Ramming Captain","Fleet","Ram Type","Rammed Captain","Rammed Ship","Rammed Ship Class","Ram Sink","Points"]
["Fleet 2 :","Axis",null,null,null,"Fleet Points:",{"$f":"C15","v":3100},"Fleet Penalties:",{"$f":"C16","v":0},"Fleet Score:",{"$f":"C17","v":3100},null,null,null,null,"Tom Tanner","Axis","Oki Maru",35.5,3,1650,null,"Kevin Plumer","Allied","Agincourt",5,900]
[null,null,null,null,null,null,null,null,null,null,null,null,null,null,null,"Andy Terpstra","Axis","Riuju",54,1,550,null,"Chris Pearce","Axis","Lutzow",3,700]
["Fleet:",{"$f":"B2","v":"Allied"},{"$f":"B3","v":"Axis"},null,null,null,null,null,null,null,null,null,null,null,null,"Nate Graham","Allied","LST",28,1,300,null,"Andy Terpstra","Axis","Lutzow",3,700]
["Targets Remaining:",0,0,null,null,null,null,null,null,null,null,null,null,null,null,"Nate Graham","Allied","Mathers",50,5,2750,null,"Isaac McKinzie","Axis","Capitani Romani",1,400]
["Target Points:",0,0,null,null,null,null,null,null,null,null,null,null,null,null,"William Tustin","Allied","Bogue",42,5,2750]
["Convoy Run Points:",20250,2200,null,null,null,null,null,null,null,null,null,null,null,null,"Tom Palmer","Allied","Adm Simms",51,2,1100]
["Scuttled Convoy Points:",0,0,null,null,null,null,null,null,null,null,null,null,null,null,"Tom Palmer","Allied","Saratoga",74,5,4250]
["Sink Points:",1800,900,null,null,null,null,null,null,null,null,null,null,null,null,"Kevin Sundberg","Allied","C3",42,2,1100]
["Convoy Friendly Ram Points:",null,null,null,null,null,null,null,null,null,null,null,null,null,null,"Justin Ragucci","Allied","LST",28,1,300]
["Ram Penalty Points:",null,null,null,null,null,null,null,null,null,null,null,null,null,null,"Justin Ragucci","Allied","Patrick Henry",37,6,3300]
["No Ship on Water Points:",0,0,null,null,null,null,null,null,null,null,null,null,null,null,"Kevin Plumer","Allied","Bogue",42,1,550]
["Convoy Run Every 10 Min Points:",500,0,null,null,null,null,null,null,null,null,null,null,null,null,"Matt Andrews","Allied","C3",42,4,2200]
["Total Points:",{"$f":"B7+B8+B9+B10+B11+B13+B14","v":22550},{"$f":"C7+C8+C9+C10+C11+C13+C14","v":3100},null,null,null,null,null,null,null,null,null,null,null,null,"Brandon Graham","Allied","Gambier",35.5,1,550]
["Total Penalties:",{"$f":"B12","v":0},{"$f":"C12","v":0},null,null,null,null,null,null,null,null,null,null,null,null,"Brian Koehler","Allied","Altmark",47,2,1100]
["Fleet Score:",{"$f":"B15-B16","v":22550},{"$f":"C15-C16","v":3100}]

{"sheet":"Nats Thur 1","index":14,"n_rows":33,"n_cols":20,"rows_kept":33,"cut":false,"hidden":false,"merged":[]}
[null,null,null,null,null,null,null,null,"Winner:",{"$f":"IF(K2>K3, B2, IF(K3>K2, B3, \"Tie\"))","v":"Axis"},null,"Battle Type","Battle Location and Month (i.e. MD May)","Nats",null,null,null,null,"Fleet"]
["Fleet 1 :","Allied",null,"Fleet Units:",75.5,"Fleet Weight:",104,"Fleet Battle Damage:",26820,"Fleet Score:",9390,null,"Battle Day","Thur",null,null,null,null,"Mini-Fleet"]
["Fleet 2 :","Axis",null,"Fleet Units:",58,"Fleet Weight:",105,"Fleet Battle Damage:",9390,"Fleet Score:",26419.998046875,null,"Battle Number",1,null,null,null,null,"Individual"]
["Captian","Ship","Fleet","Class","Units","Above","On","Below","Sinks","Participate all Sorties","Penalties Points","2nd Sortie Sink","Damage Points","Scored By","Notes","Weight Factor","Weight Points","Captian","Captain Points","Indiv Points"]
["Steve Andrews","Des Moines","Allied",3,3.5,120,12,16,0,1,0,0,1920,"Craig","None,None,None",7,632.01923076923072,"Steve Andrews",632.01923076923072]
["Caleb Smith","Courbet","Allied",4,4.5,124,31,31,1,1,0,1,3590,"Bob","None,None,None",8,722.30769230769238,"Caleb Smith",522.30769230769238]
["Michael Smith","NC","Allied",6,6,67,6,32,0,1,0,0,1750,"Tim","None,None,None",10,902.88461538461547,"Michael Smith",902.88461538461547]
["Kas Gaigalas","NC","Allied",6,6,28,7,24,0,1,0,0,1140,"Tom","None,None,None",10,902.88461538461547,"Kas Gaigalas",902.88461538461547]
["Craig Singer","Nagato","Axis",6,6,49,6,22,0,1,0,0,1270,"Matt","None,None,None",10,2554.2857142857142,"Craig Singer",2554.2857142857142]
["Matt Andrews","Iron Duke","Allied",5,5,46,3,31,1,0,0,0,2350,"Zach","None,None,None",4.5,406.29807692307691,"Matt Andrews",406.29807692307691]
["William Tustin","Jean Bart","Allied",6,6.5,54,10,44,1,0,0,0,3060,"Zach","None,None,None",5,451.44230769230774,"William Tustin",451.44230769230774]
["Kevin Sundberg","Invincible","Allied",4,4,7,0,2,0,1,0,0,130,"Matt","None,None,None",8,722.30769230769238,"Kevin Sundberg",722.30769230769238]
["Isaac McKinzie","Capitani Romani","Axis",1,1.5,9,2,1,1,1,0,1,560,"Nate","None,None,None",4,1021.7142857142858,"Isaac McKinzie",821.71428571428578]
["Sydnee McKinzie","Radetzky","Axis",3,3.5,18,1,2,0,1,0,0,260,"Tom","None,None,None",7,1788,"Sydnee McKinzie",1788]
["Nate Graham","Gearing","Allied",1,1.5,1,0,0,0,1,0,0,10,"Sydnee","None,None,None",4,361.15384615384619,"Nate Graham",361.15384615384619]
["Timothy Beckett","Foch","Axis",3,3,0,0,2,0,1,0,0,60,"Rick","None,None,None",7,1788,"Timothy Beckett",1788]
["Brandon Graham","Courbet","Allied",4,4.5,49,7,55,1,1,0,1,3080,"Tim","None,None,None",8,722.30769230769238,"Brandon Graham",522.30769230769238]
["Rick Whitsell","Jamaica","Allied",2,2.5,2,9,3,0,1,0,0,290,"Tim","None,None,None",6,541.73076923076928,"Rick Whitsell",541.73076923076928]
["Chris Pearce","Seydlitz","Axis",4,4.5,39,6,18,0,1,0,0,1050,"Kevin","None,None,None",8,2043.4285714285716,"Chris Pearce",2043.4285714285716]
["Brian Koehler","QE","Allied",5,5.5,36,2,14,1,1,0,1,1720,"Chris","None,None,None",9,812.59615384615381,"Brian Koehler",612.59615384615381]
["Andy Terpstra","Kongo","Axis",4,4.5,24,2,16,0,1,200,0,760,"Kevin","Ram Below Jean Bart,None,None",8,1843.4285714285716,"Andy Terpstra",1843.4285714285716]
["Bob Hoernemann","Nagato","Axis",6,6,49,29,37,0,1,200,0,2180,"Kevin","Ram Below Des Moines,None,None",10,2354.2857142857142,"Bob Hoernemann",2354.2857142857142]
["Zach Hoernemann","Kongo","Axis",4,4.5,27,0,11,0,1,0,0,600,"Kevin","None,None,None",8,2043.4285714285716,"Zach Hoernemann",2043.4285714285716]
["Tom Palmer","Warspite","Allied",5,5.5,24,14,23,1,0,0,0,2110,"Lee","None,None,None",4.5,406.29807692307691,"Tom Palmer",406.29807692307691]
["Brian Lamb","Seydlitz","Axis",4,4.5,12,2,6,0,1,0,0,340,"Rob","None,None,None",8,2043.4285714285716,"Brian Lamb",2043.4285714285716]
["Tom Tanner","Ostfriesland","Axis",4,4,28,1,7,0,1,0,0,510,"Caleb","None,None,None",8,2043.4285714285716,"Tom Tanner",2043.4285714285716]
["Robert Stalnaker","Revenge","Allied",5,5.5,16,1,0,1,0,0,0,1080,"Lee","None,None,None",4.5,406.29807692307691,"Robert Stalnaker",406.29807692307691]
["Ginger Andrews","Des Moines","Allied",3,3.5,49,13,28,0,1,0,0,1590,"Chris","None,None,None",7,632.01923076923072,"Ginger Andrews",632.01923076923072]
["Kevin Plumer","Radetzky","Allied",3,3.5,10,3,10,0,0,0,0,460,"Andy","None,None,None",3.5,316.00961538461536,"Kevin Plumer",316.00961538461536]
["Kevin Plumer","Missouri","Allied",7,8,39,1,31,1,0,0,0,2540,"Andy","None,None,None",5,451.44230769230774,"Kevin Plumer",451.44230769230774]
["Charley Stephens","Seydlitz","Axis",4,4.5,24,5,16,0,1,0,0,820,"Ginger","None,None,None",8,2043.4285714285716,"Charley Stephens",2043.4285714285716]
["Matt Larson","Nagato","Axis",6,6,32,0,10,0,1,0,0,620,"Kas","None,None,None",10,2554.2857142857142,"Matt Larson",2554.2857142857142]
["Lee McKinzie","Baden","Axis",5,5.5,21,3,3,0,1,0,0,360,"Caleb","None,None,None",9,2298.8571428571427,"Lee McKinzie",2298.8571428571427]

{"sheet":"Nationals Wed Cruiser","index":15,"n_rows":13,"n_cols":20,"rows_kept":13,"cut":false,"hidden":false,"merged":[]}
[null,null,null,null,null,null,null,null,"Winner:",{"$f":"IF(K2>K3, B2, IF(K3>K2, B3, \"Tie\"))","v":"No Flag"},null,"Battle Type","Battle Location and Month (i.e. MD May)","Nationals",null,null,null,null,"Fleet"]
["Fleet 1 :","Flag",null,"Fleet Units:",13.5,"Fleet Weight:",30,"Fleet Battle Damage:",7450,"Fleet Score:",4320,null,"Battle Day","Wed",null,null,null,null,"Mini-Fleet"]
["Fleet 2 :","No Flag",null,"Fleet Units:",13,"Fleet Weight:",27,"Fleet Battle Damage:",4320,"Fleet Score:",7450,null,"Battle Number","Cruiser",null,null,null,null,"Individual"]
["Captian","Ship","Fleet","Class","Units","Above","On","Below","Sinks","Participate all Sorties","Penalties Points","2nd Sortie Sink","Damage Points","Scored By","Notes","Weight Factor","Weight Points","Captian","Captain Points","Indiv Points"]
["Michael Smith","Torielle","Flag",2,2.5,58,9,17,2,1,0,1,2470,"Kevin","None,None,None",6,864,"Michael Smith",664]
["Kevin Plumer","Fiji","No Flag",2,2.5,89,2,1,0,1,0,0,960,"Kevin","None,None,None",6,1655.5555555555554,"Kevin Plumer",1655.5555555555554]
["Caleb Smith","Tromp","Flag",1,1.5,3,0,0,0,1,0,0,30,"Caleb","None,None,None",4,576,"Caleb Smith",576]
["Steve Andrews","Des Moines","No Flag",3,3.5,90,2,3,0,1,0,0,1030,"Justin","None,None,None",7,1931.4814814814813,"Steve Andrews",1931.4814814814813]
["Bob Hoernemann","Lutzow","No Flag",3,3.5,28,5,19,1,1,0,1,1650,"Bob","None,None,None",7,1931.4814814814813,"Bob Hoernemann",1731.4814814814813]
["Ginger Andrews","Des Moines","Flag",3,3.5,38,0,5,0,1,0,0,530,"Ginger","None,None,None",7,1008,"Ginger Andrews",1008]
["Tom Palmer","Connecticut","Flag",3,3.5,105,16,27,2,1,0,1,3580,"Tom","None,None,None",7,1008,"Tom Palmer",808]
["Rick Whitsell","Jamaica","Flag",2,2.5,9,6,21,0,1,0,0,840,"Rick","None,None,None",6,864,"Rick Whitsell",864]
["Zach Hoernemann","Radetzky","No Flag",3,3.5,24,7,10,0,1,0,0,680,"Zach","None,None,None",7,1931.4814814814813,"Zach Hoernemann",1931.4814814814813]

{"sheet":"Nationals Wed FrenchvNagato","index":16,"n_rows":7,"n_cols":20,"rows_kept":7,"cut":false,"hidden":false,"merged":[]}
[null,null,null,null,null,null,null,null,"Winner:",{"$f":"IF(K2>K3, B2, IF(K3>K2, B3, \"Tie\"))","v":"French"},null,"Battle Type","Battle Location and Month (i.e. MD May)","Nationals",null,null,null,null,"Fleet"]
["Fleet 1 :","French",null,"Fleet Units:",9,"Fleet Weight:",16,"Fleet Battle Damage:",650,"Fleet Score:",3210,null,"Battle Day","Wed",null,null,null,null,"Mini-Fleet"]
["Fleet 2 :","Craig",null,"Fleet Units:",6,"Fleet Weight:",10,"Fleet Battle Damage:",3210,"Fleet Score:",650,null,"Battle Number","FrenchvNagato",null,null,null,null,"Individual"]
["Captian","Ship","Fleet","Class","Units","Above","On","Below","Sinks","Participate all Sorties","Penalties Points","2nd Sortie Sink","Damage Points","Scored By","Notes","Weight Factor","Weight Points","Captian","Captain Points","Indiv Points"]
["Steve Andrews","Courbet","French",4,4.5,8,0,1,0,1,0,0,110,"Craig","None,None,None",8,1605,"Steve Andrews",1605,1280]
["Caleb Smith","Courbet","French",4,4.5,37,1,5,0,1,0,0,540,"Caleb","None,None,None",8,1605,"Caleb Smith",1605,1280]
["Craig Singer","Nagato","Craig",6,6,69,16,40,1,1,0,1,3210,"Steve","None,None,None",10,650,"Craig Singer",450,0]

{"sheet":"Nationals Wed MattvKevin","index":17,"n_rows":6,"n_cols":20,"rows_kept":6,"cut":false,"hidden":false,"merged":[]}
[null,null,null,null,null,null,null,null,"Winner:",{"$f":"IF(K2>K3, B2, IF(K3>K2, B3, \"Tie\"))","v":"Kevin"},null,"Battle Type","Battle Location and Month (i.e. MD May)","Nationals",null,null,null,null,"Fleet"]
["Fleet 1 :","Kevin",null,"Fleet Units:",5.5,"Fleet Weight:",9,"Fleet Battle Damage:",180,"Fleet Score:",1910,null,"Battle Day","Wed",null,null,null,null,"Mini-Fleet"]
["Fleet 2 :","Matt",null,"Fleet Units:",5,"Fleet Weight:",9,"Fleet Battle Damage:",1910,"Fleet Score:",180,null,"Battle Number","MattvKevin",null,null,null,null,"Individual"]
["Captian","Ship","Fleet","Class","Units","Above","On","Below","Sinks","Participate all Sorties","Penalties Points","2nd Sortie Sink","Damage Points","Scored By","Notes","Weight Factor","Weight Points","Captian","Captain Points","Indiv Points"]
["Kevin Plumer","Agincourt","Kevin",5,5.5,6,0,4,0,1,0,0,180,"Matt","None,None,None",9,1910,"Kevin Plumer",1910,1730]
["Matt Andrews","Iron Duke","Matt",5,5,36,7,17,1,1,0,1,1910,"Kevin","None,None,None",9,180,"Matt Andrews",-20,0]

{"sheet":"Nats Wed 1","index":18,"n_rows":19,"n_cols":20,"rows_kept":19,"cut":false,"hidden":false,"merged":[]}
[null,null,null,null,null,null,null,null,"Winner:",{"$f":"IF(K2>K3, B2, IF(K3>K2, B3, \"Tie\"))","v":"Allied"},null,"Battle Type","Battle Location and Month (i.e. MD May)","Nats",null,null,null,null,"Fleet"]
["Fleet 1 :","Allied",null,"Fleet Units:",34,"Fleet Weight:",62,"Fleet Battle Damage:",2930,"Fleet Score:",3000,null,"Battle Day","Wed",null,null,null,null,"Mini-Fleet"]
["Fleet 2 :","Axis",null,"Fleet Units:",31.5,"Fleet Weight:",57,"Fleet Battle Damage:",3000,"Fleet Score:",2930,null,"Battle Number",1,null,null,null,null,"Individual"]
["Captian","Ship","Fleet","Class","Units","Above","On","Below","Sinks","Participate all Sorties","Penalties Points","2nd Sortie Sink","Damage Points","Scored By","Notes","Weight Factor","Weight Points","Captian","Captain Points","Indiv Points"]
["Craig Singer","Nagato","Axis",6,6,33,9,27,0,1,0,0,1320,"Kas","None,None,None",10,514.03508771929819,"Craig Singer",514.03508771929819]
["Kas Gaigalas","Washington","Allied",6,6,42,7,4,0,1,0,0,680,"Craig","None,None,None",10,483.87096774193549,"Kas Gaigalas",483.87096774193549]
["Kevin Plumer","Invincible","Allied",4,4,0,0,1,0,1,0,0,30,"Tim","None,None,None",8,387.09677419354836,"Kevin Plumer",387.09677419354836]
["Sydnee McKinzie","Radetzky","Axis",3,3.5,6,1,0,0,1,0,0,80,"Kevin","None,None,None",7,359.82456140350877,"Sydnee McKinzie",359.82456140350877]
["Brian Lamb","Seydlitz","Axis",4,4.5,19,2,2,0,1,0,0,290,"Brian","None,None,None",8,411.22807017543857,"Brian Lamb",411.22807017543857]
["Chris Pearce","Seydlitz","Axis",4,4.5,3,1,1,0,1,0,0,80,"Brain","None,None,None",8,411.22807017543857,"Chris Pearce",411.22807017543857]
["Timothy Beckett","Foch","Axis",3,3,1,0,0,0,1,0,0,10,"Brian","None,None,None",7,359.82456140350877,"Timothy Beckett",359.82456140350877]
["Brian Koehler","QE","Allied",5,5.5,0,0,0,0,1,0,0,0,"Chris","None,None,None",9,435.48387096774195,"Brian Koehler",435.48387096774195]
["Rick Whitsell","Jamaica","Allied",2,2.5,2,1,1,0,1,0,0,70,"Tim","None,None,None",6,290.32258064516128,"Rick Whitsell",290.32258064516128]
["Lee McKinzie","Baden","Axis",5,5.5,6,1,2,0,1,0,0,140,"Nate","None,None,None",9,462.63157894736838,"Lee McKinzie",462.63157894736838]
["Steve Andrews","Courbet","Allied",4,4.5,1,1,4,0,1,0,0,150,"Tom","None,None,None",8,387.09677419354836,"Steve Andrews",387.09677419354836]
["Charley Stephens","Seydlitz","Axis",4,4.5,9,9,27,0,1,0,0,1080,"Kevin","None,None,None",8,411.22807017543857,"Charley Stephens",411.22807017543857]
["Nate Graham","Gearing","Allied",1,1.5,3,0,0,0,1,0,0,30,"Tom","None,None,None",4,193.54838709677418,"Nate Graham",193.54838709677418]
["Caleb Smith","Courbet","Allied",4,4.5,81,9,6,0,1,0,0,1170,"Charley","None,None,None",8,387.09677419354836,"Caleb Smith",387.09677419354836]
["Kevin Plumer","Agincourt","Allied",5,5.5,27,7,13,0,1,0,0,800,"Tim","None,None,None",9,435.48387096774195,"Kevin Plumer",435.48387096774195]

{"sheet":"Nats Tues Campaign","index":19,"n_rows":20,"n_cols":43,"rows_kept":20,"cut":false,"hidden":false,"merged":[]}
[null,null,null,null,null,null,null,null,"Winner:",{"$f":"IF(K2>K3, B2, IF(K3>K2, B3, \"Tie\"))","v":"Allied"},null,null,"Battle Location and Month (i.e. MD May)","Nats",null,"Convoy Runs",null,null,null,null,null,null,"Sinks",null,null,null,null,null,"Convoy Friendly Ram",null,null,null,null,null,null,"Ram Penalties"]
["Fleet 1 :","Allied",null,null,null,"Fleet Points:",{"$f":"B15","v":24850},"Fleet Penalties:",{"$f":"B16","v":0},"Fleet Score:",{"$f":"B17","v":24850},null,"Battle Day","Tues",null,"Captain","Fleet","Ship","Ship Length","Number of Runs","Points",null,"Captain","Fleet","Ship","Class","Sink Points",null,"Ramming Captain","Fleet","Convoy Ship","Convoy Captain","Ship Length","Points",null,"Ramming Captain","Fleet","Ram Type","Rammed Captain","Rammed Ship","Rammed Ship Class","Ram Sink","Points"]
["Fleet 2 :","Axis",null,null,null,"Fleet Points:",{"$f":"C15","v":5550},"Fleet Penalties:",{"$f":"C16","v":450},"Fleet Score:",{"$f":"C17","v":5100},null,null,null,null,"Tom Palmer","Allied","Adm Taylor",51,3,1650,null,"Isaac McKinzie","Axis","Capitani Romani",1,400,null,null,null,null,null,null,null,null,"Lee McKinzie","Axis","Below","Kevin Plumer","Agincourt",5,0,200]
[null,null,null,null,null,null,null,null,null,null,null,null,null,null,null,"Tom Palmer","Allied","Saratoga",74,4,3400,null,"William Tustin","Allied","Jean Bart",6,1000,null,null,null,null,null,null,null,null,"Lee McKinzie","Axis","Below","Kevin Plumer","Radetzky",3,0,200]
["Fleet:",{"$f":"B2","v":"Allied"},{"$f":"B3","v":"Axis"},null,null,null,null,null,null,null,null,null,null,null,null,"Nate Graham","Allied","LST",26.75,5,1500,null,"Matt Andrews","Allied","NC",6,1000,null,null,null,null,null,null,null,null,"Lee McKinzie","Axis","Superstructure","Kas Gaigalas","Fiji",2,0,50]
["Targets Remaining:",0,0,null,null,null,null,null,null,null,null,null,null,null,null,"Nate Graham","Allied","mathers",51,2,1100,null,"Kevin Sundberg","Allied","Invincible",4,800]
["Target Points:",0,0,null,null,null,null,null,null,null,null,null,null,null,null,"Kevin Plumer","Allied","Bogue",42,3,1650]
["Convoy Run Points:",24450,2750,null,null,null,null,null,null,null,null,null,null,null,null,"Robert Stalnaker","Allied","Red Oak",37,5,2750]
["Scuttled Convoy Points:",0,0,null,null,null,null,null,null,null,null,null,null,null,null,"Robert Stalnaker","Allied","Patrick",37,2,1100]
["Sink Points:",400,2800,null,null,null,null,null,null,null,null,null,null,null,null,"Brian Koehler","Allied","Altmark",49,1,550]
["Convoy Friendly Ram Points:",null,null,null,null,null,null,null,null,null,null,null,null,null,null,"Brian Koehler","Allied","C3",42,2,1100]
["Ram Penalty Points:",null,450,null,null,null,null,null,null,null,null,null,null,null,null,"Matt Andrews","Allied","C3",42,2,1100]
["No Ship on Water Points:",0,0,null,null,null,null,null,null,null,null,null,null,null,null,"William Tustin","Allied","C3",42,6,3300]
["Convoy Run Every 10 Min Points:",0,0,null,null,null,null,null,null,null,null,null,null,null,null,"William Tustin","Allied","LST",26.75,1,300]
["Total Points:",{"$f":"B7+B8+B9+B10+B11+B13+B14","v":24850},{"$f":"C7+C8+C9+C10+C11+C13+C14","v":5550},null,null,null,null,null,null,null,null,null,null,null,null,"Matt Andrews","Allied","Gambrier Bay",38,4,2200]
["Total Penalties:",{"$f":"B12","v":0},{"$f":"C12","v":450},null,null,null,null,null,null,null,null,null,null,null,null,"Brandon Graham","Allied","Bogue",42,2,1100]
["Fleet Score:",{"$f":"B15-B16","v":24850},{"$f":"C15-C16","v":5100},null,null,null,null,null,null,null,null,null,null,null,null,"Kevin Sundberg","Allied","altmark",49,1,550]
[null,null,null,null,null,null,null,null,null,null,null,null,null,null,null,"Kevin Sundberg","Allied","C3",42,2,1100]
[null,null,null,null,null,null,null,null,null,null,null,null,null,null,null,"Charley Stephens","Axis","Oki Maru",35.5,2,1100]
[null,null,null,null,null,null,null,null,null,null,null,null,null,null,null,"Charley Stephens","Axis","Ruju",54,3,1650]

{"sheet":"Nats Tues 1","index":20,"n_rows":30,"n_cols":20,"rows_kept":30,"cut":false,"hidden":false,"merged":[]}
[null,null,null,null,null,null,null,null,"Winner:",{"$f":"IF(K2>K3, B2, IF(K3>K2, B3, \"Tie\"))","v":"Axis"},null,"Battle Type","Battle Location and Month (i.e. MD May)","Nats",null,null,null,null,"Fleet"]
["Fleet 1 :","Allied",null,"Fleet Units:",62.5,"Fleet Weight:",93,"Fleet Battle Damage:",18470,"Fleet Score:",14190,null,"Battle Day","Tues",null,null,null,null,"Mini-Fleet"]
["Fleet 2 :","Axis",null,"Fleet Units:",58,"Fleet Weight:",100,"Fleet Battle Damage:",14390,"Fleet Score:",18070,null,"Battle Number",1,null,null,null,null,"Individual"]
["Captian","Ship","Fleet","Class","Units","Above","On","Below","Sinks","Participate all Sorties","Penalties Points","2nd Sortie Sink","Damage Points","Scored By","Notes","Weight Factor","Weight Points","Captian","Captain Points","Indiv Points"]
["Andy Terpstra","Kongo","Axis",4,4.5,83,8,36,0,1,0,0,2070,"Brandon","None,None,None",8,1477.6000000000001,"Andy Terpstra",1477.6000000000001]
["William Tustin","Jean Bart","Allied",6,6.5,62,11,27,1,0,0,0,2650,"Craig","None,None,None",5,773.6559139784946,"William Tustin",773.6559139784946]
["Tom Tanner","Ostfriesland","Axis",4,4,21,5,17,0,1,0,0,820,"Caleb","None,None,None",8,1477.6000000000001,"Tom Tanner",1477.6000000000001]
["Tom Palmer","Warspite","Allied",5,5.5,13,12,18,0,1,0,0,910,"Brian","None,None,None",9,1392.5806451612902,"Tom Palmer",1392.5806451612902]
["Kevin Sundberg","Invincible","Allied",4,4,7,1,8,1,0,0,0,1130,"Tom","None,None,None",4,618.92473118279577,"Kevin Sundberg",618.92473118279577]
["Brian Lamb","Seydlitz","Axis",4,4.5,45,5,7,0,1,0,0,760,"Kas","None,None,None",8,1477.6000000000001,"Brian Lamb",1477.6000000000001]
["Brian Koehler","QE","Allied",5,5.5,3,0,8,0,1,0,0,270,"Chris","None,None,None",9,1392.5806451612902,"Brian Koehler",1392.5806451612902]
["Rick Whitsell","Jamaica","Allied",2,2.5,24,2,17,0,1,0,0,790,"Tim","None,None,None",6,928.38709677419354,"Rick Whitsell",928.38709677419354]
["Brandon Graham","Courbet","Allied",4,4.5,43,8,41,0,1,0,0,1820,"Chris","None,None,None",8,1237.8494623655915,"Brandon Graham",1237.8494623655915]
["Ginger Andrews","Des Moines","Allied",3,3.5,5,5,8,0,1,0,0,390,"Chris","None,None,None",7,1083.1182795698926,"Ginger Andrews",1083.1182795698926]
["Charley Stephens","Seydlitz","Axis",4,4.5,44,6,27,0,1,0,0,1370,"Kevin S","None,None,None",8,1477.6000000000001,"Charley Stephens",1477.6000000000001]
["Lee McKinzie","Baden","Axis",5,5.5,21,0,22,0,1,0,0,870,"Matt","None,None,None",9,1662.3,"Lee McKinzie",1662.3]
["Matt Andrews","NC","Allied",6,6,36,6,14,1,0,0,0,1900,"Andy","None,None,None",5,773.6559139784946,"Matt Andrews",773.6559139784946]
["Chris Pearce","Seydlitz","Axis",4,4.5,11,5,6,1,1,400,1,1190,"Brian","Ram Below Kevin,Ram Below,None",8,1077.6000000000001,"Chris Pearce",877.60000000000014]
["Timothy Beckett","Foch","Axis",3,3,5,2,3,0,1,0,0,180,"Rick","None,None,None",7,1292.9000000000001,"Timothy Beckett",1292.9000000000001]
["Isaac McKinzie","Capitani Romani","Axis",1,1.5,0,0,1,0,1,0,0,30,"Nate","None,None,None",4,738.80000000000007,"Isaac McKinzie",738.80000000000007]
["Nate Graham","Gearing","Allied",1,1.5,3,0,5,0,1,0,0,180,"Lee","None,None,None",4,618.92473118279577,"Nate Graham",618.92473118279577]
["Sydnee McKinzie","Radetzky","Axis",3,3.5,9,1,2,0,1,0,0,170,"Will","None,None,None",7,1292.9000000000001,"Sydnee McKinzie",1292.9000000000001]
["Matt Larson","Nagato","Axis",6,6,33,3,12,0,1,0,0,750,"Tom","None,None,None",10,1847,"Matt Larson",1847]
["Bob Hoernemann","Nagato","Axis",6,6,52,13,41,0,1,0,0,2010,"Kevin","None,None,None",10,1847,"Bob Hoernemann",1847]
["Steve Andrews","Courbet","Allied",4,4.5,51,11,29,1,1,200,0,2400,"Andy","Ram Below Tom,None,None",8,1037.8494623655915,"Steve Andrews",1037.8494623655915]
["Caleb Smith","Courbet","Allied",4,4.5,41,10,33,1,1,0,1,2400,"Lee","None,None,None",8,1237.8494623655915,"Caleb Smith",1037.8494623655915]
["Kas Gaigalas","Washington","Allied",6,6,37,6,17,0,1,0,0,1000,"Craig","None,None,None",10,1547.3118279569892,"Kas Gaigalas",1547.3118279569892]
["Craig Singer","Nagato","Axis",6,6,22,0,20,1,0,0,0,1820,"Kas","None,None,None",5,923.5,"Craig Singer",923.5]
["Kevin Plumer","Missouri","Allied",7,8,90,25,41,0,1,0,0,2630,"Zach","None,None,None",10,1547.3118279569892,"Kevin Plumer",1547.3118279569892]
["Zach Hoernemann","Kongo","Axis",4,4.5,43,12,56,0,1,0,0,2350,"Kevin","None,None,None",8,1477.6000000000001,"Zach Hoernemann",1477.6000000000001]

{"sheet":"Nats 1 2","index":21,"n_rows":31,"n_cols":20,"rows_kept":31,"cut":false,"hidden":false,"merged":[]}
[null,null,null,null,null,null,null,null,"Winner:",{"$f":"IF(K2>K3, B2, IF(K3>K2, B3, \"Tie\"))","v":"Axis"},null,"Battle Type","Battle Location and Month (i.e. MD May)","Nats",null,null,null,null,"Fleet"]
["Fleet 1 :","Allied",null,"Fleet Units:",66,"Fleet Weight:",109.5,"Fleet Battle Damage:",17190,"Fleet Score:",12110.0009765625,null,"Battle Day",1,null,null,null,null,"Mini-Fleet"]
["Fleet 2 :","Axis",null,"Fleet Units:",56,"Fleet Weight:",95.5,"Fleet Battle Damage:",12610,"Fleet Score:",16790,null,"Battle Number",2,null,null,null,null,"Individual"]
["Captian","Ship","Fleet","Class","Units","Above","On","Below","Sinks","Participate all Sorties","Penalties Points","2nd Sortie Sink","Damage Points","Scored By","Notes","Weight Factor","Weight Points","Captian","Captain Points","Indiv Points"]
["Craig Singer","Nagato","Axis",6,6,40,9,25,0,1,0,0,1330,"Kas","None,None,None",10,1800,"Craig Singer",1800]
["Caleb Smith","Courbet","Allied",4,4.5,51,13,26,0,1,200,0,1550,"Charley","Ram Below,None,None",8,721.27853881278531,"Caleb Smith",721.27853881278531]
["Steve Andrews","Courbet","Allied",4,4.5,14,11,26,0,1,0,0,1140,"Sydnee","None,None,None",8,921.27853881278531,"Steve Andrews",921.27853881278531]
["Tom Palmer","Warspite","Allied",5,5.5,40,21,50,1,1,0,1,3220,"Brian","None,None,None",9,1036.4383561643835,"Tom Palmer",836.43835616438355]
["William Tustin","Agincourt","Allied",5,5.5,49,17,25,1,1,0,1,2480,"Craig","None,None,None",9,1036.4383561643835,"William Tustin",836.43835616438355]
["Bob Hoernemann","Nagato","Axis",6,6,11,4,9,1,1,0,1,1460,"Brian","None,None,None",10,1800,"Bob Hoernemann",1600]
["Charley Stephens","Seydlitz","Axis",4,4.5,10,8,19,0,1,0,0,830,"Rob","None,None,None",8,1440,"Charley Stephens",1440]
["Andy Terpstra","Kongo","Axis",4,4.5,77,10,56,1,1,0,1,3450,"Rick","None,None,None",8,1440,"Andy Terpstra",1240]
["Ginger Andrews","Des Moines","Allied",3,3.5,14,0,6,0,1,0,0,320,"Tom","None,None,None",7,806.11872146118719,"Ginger Andrews",806.11872146118719]
["Brandon Graham","Courbet","Allied",4,4.5,25,4,16,0,1,0,0,810,"Andy","None,None,None",8,921.27853881278531,"Brandon Graham",921.27853881278531]
["Kevin Sundberg","Invincible","Allied",4,4,1,1,0,0,1,0,0,30,"Craig","None,None,None",8,921.27853881278531,"Kevin Sundberg",921.27853881278531]
["Matt Andrews","Iron Duke","Allied",5,5,53,16,29,1,0,100,0,2620,"Tom","Ram Above Craig,None,None",4.5,418.21917808219177,"Matt Andrews",418.21917808219177]
["Kevin Plumer","Missouri","Allied",7,8,50,10,15,0,1,0,0,1150,"Brian","None,None,None",10,1151.5981735159817,"Kevin Plumer",1151.5981735159817]
["Tom Tanner","Ostfriesland","Axis",4,4,8,4,7,0,1,0,0,370,"Brandon","None,None,None",8,1440,"Tom Tanner",1440]
["Brian Koehler","QE","Allied",5,5.5,29,4,17,1,1,0,1,1780,"Chris","None,None,None",9,1036.4383561643835,"Brian Koehler",836.43835616438355]
["Zach Hoernemann","Radetzky","Axis",3,3.5,5,2,2,0,0,0,0,150,"Mike","None,None,None",3.5,630,"Zach Hoernemann",630]
["Zach Hoernemann","Kongo","Axis",4,4.5,25,0,5,1,0,0,0,1200,"Mike","None,None,None",4,720,"Zach Hoernemann",720]
["Matt Larson","Nagato","Axis",6,6,50,2,11,0,1,200,0,870,"Mike","Ram Below Kevin,None,None",10,1600,"Matt Larson",1600]
["Robert Stalnaker","Revenge","Allied",5,5.5,22,0,3,1,1,0,1,1210,"Craig","None,None,None",9,1036.4383561643835,"Robert Stalnaker",836.43835616438355]
["Rick Whitsell","Jamaica","Allied",2,2.5,4,1,1,0,1,0,0,90,"Tim","None,None,None",6,690.95890410958896,"Rick Whitsell",690.95890410958896]
["Nate Graham","Gearing","Allied",1,1.5,8,2,1,0,1,0,0,150,"Isaac","None,None,None",4,460.63926940639266,"Nate Graham",460.63926940639266]
["Brian Lamb","Seydlitz","Axis",4,4.5,35,7,26,0,1,0,0,1270,"Kevin","None,None,None",8,1440,"Brian Lamb",1440]
["Kas Gaigalas","Washington","Allied",6,6,24,2,12,0,1,200,0,640,"Craig","Ram Below Sydnee,None,None",10,951.59817351598167,"Kas Gaigalas",951.59817351598167]
["Sydnee McKinzie","Radetzky","Axis",3,3.5,13,5,5,0,1,0,0,380,"Ginger","None,None,None",7,1260,"Sydnee McKinzie",1260]
["Timothy Beckett","Foch","Axis",3,3,10,2,2,0,1,0,0,200,"Rick","None,None,None",7,1260,"Timothy Beckett",1260]
["Isaac McKinzie","Capitani Romani","Axis",1,1.5,3,0,2,1,1,0,1,490,"Nate","None,None,None",4,720,"Isaac McKinzie",520]
["Chris Pearce","Seydlitz","Axis",4,4.5,15,11,8,0,1,200,0,610,"Brian","Ram Below Kevin,None,None",8,1240,"Chris Pearce",1240]

{"sheet":"Nats 1 1","index":22,"n_rows":30,"n_cols":20,"rows_kept":30,"cut":false,"hidden":false,"merged":[]}
[null,null,null,null,null,null,null,null,"Winner:",{"$f":"IF(K2>K3, B2, IF(K3>K2, B3, \"Tie\"))","v":"Axis"},null,"Battle Type","Battle Location and Month (i.e. MD May)","Nats",null,null,null,null,"Fleet"]
["Fleet 1 :","Allied",null,"Fleet Units:",65,"Fleet Weight:",108,"Fleet Battle Damage:",18420,"Fleet Score:",12329.9990234375,null,"Battle Day",1,null,null,null,null,"Mini-Fleet"]
["Fleet 2 :","Axis",null,"Fleet Units:",52.5,"Fleet Weight:",92,"Fleet Battle Damage:",13330,"Fleet Score:",17920.001953125,null,"Battle Number",1,null,null,null,null,"Individual"]
["Captian","Ship","Fleet","Class","Units","Above","On","Below","Sinks","Participate all Sorties","Penalties Points","2nd Sortie Sink","Damage Points","Scored By","Notes","Weight Factor","Weight Points","Captian","Captain Points","Indiv Points"]
["Kevin Sundberg","Invincible","Allied",4,4,7,0,0,0,1,0,0,70,"Chris","None,None,None",8,987.40740740740739,"Kevin Sundberg",987.40740740740739]
["Ginger Andrews","Des Moines","Allied",3,3.5,28,5,18,0,1,0,0,920,"Sydnee","None,None,None",7,863.98148148148141,"Ginger Andrews",863.98148148148141]
["William Tustin","Jean Bart","Allied",6,6.5,71,13,29,1,0,0,0,2840,"Chris","None,None,None",5,617.12962962962956,"William Tustin",617.12962962962956]
["Nate Graham","Gearing","Allied",1,1.5,1,0,0,0,1,0,0,10,"Tom","None,None,None",4,493.7037037037037,"Nate Graham",493.7037037037037]
["Brandon Graham","Courbet","Allied",4,4.5,37,3,29,0,1,0,0,1300,"Chris","None,None,None",8,987.40740740740739,"Brandon Graham",987.40740740740739]
["Tom Palmer","Warspite","Allied",5,5.5,26,9,12,0,1,0,0,800,"Matt","None,None,None",9,1110.8333333333333,"Tom Palmer",1110.8333333333333]
["Rick Whitsell","Jamaica","Allied",2,2.5,12,6,3,0,1,0,0,330,"Tim","None,None,None",6,740.55555555555554,"Rick Whitsell",740.55555555555554]
["Kas Gaigalas","Washington","Allied",6,6,43,8,28,0,1,0,0,1430,"Craig","None,None,None",10,1234.2592592592591,"Kas Gaigalas",1234.2592592592591]
["Brian Koehler","Ajax","Allied",2,2.5,0,1,1,0,1,0,0,50,"Tom","None,None,None",6,740.55555555555554,"Brian Koehler",740.55555555555554]
["Robert Stalnaker","Revenge","Allied",5,5.5,27,2,3,1,1,0,1,1300,"Tim","None,None,None",9,1110.8333333333333,"Robert Stalnaker",910.83333333333326]
["Caleb Smith","Courbet","Allied",4,4.5,103,17,30,1,1,0,1,3070,"tom","None,None,None",8,987.40740740740739,"Caleb Smith",787.40740740740739]
["Chris Pearce","Seydlitz","Axis",4,4.5,2,0,0,0,0,0,0,20,"Brandon","None,None,None",4,800.86956521739125,"Chris Pearce",800.86956521739125]
["Matt Andrews","NC","Allied",6,6,27,7,24,0,1,1000,0,1130,"Tommy","Withdraw,None,None",10,234.25925925925912,"Matt Andrews",234.25925925925912]
["Charley Stephens","Seydlitz","Axis",4,4.5,18,16,31,0,1,0,0,1430,"Brian","None,None,None",8,1601.7391304347825,"Charley Stephens",1601.7391304347825]
["Isaac McKinzie","Capitani Romani","Axis",1,1.5,6,2,5,0,1,0,0,250,"Kevin","None,None,None",4,800.86956521739125,"Isaac McKinzie",800.86956521739125]
["Bob Hoernemann","Nagato","Axis",6,6,33,6,27,1,1,100,1,2260,"Kevin","Ram Above Kevin,None,None",10,1902.1739130434783,"Bob Hoernemann",1702.1739130434783]
["Andy Terpstra","Kongo","Axis",4,4.5,55,6,17,0,1,200,0,1180,"Kevin","Ram Below Brandon,None,None",8,1401.7391304347825,"Andy Terpstra",1401.7391304347825]
["Sydnee McKinzie","Radetzky","Axis",3,3.5,1,5,6,0,1,0,0,290,"Kevin","None,None,None",7,1401.521739130435,"Sydnee McKinzie",1401.521739130435]
["Matt Larson","Nagato","Axis",6,6,31,5,14,1,1,0,1,1830,"Tom","None,None,None",10,2002.1739130434783,"Matt Larson",1802.1739130434783]
["Zach Hoernemann","Kongo","Axis",4,4.5,9,2,20,0,1,0,0,730,"Rick","None,None,None",8,1601.7391304347825,"Zach Hoernemann",1601.7391304347825]
["Timothy Beckett","Foch","Axis",3,3,10,0,1,0,1,0,0,130,"Matt","None,None,None",7,1401.521739130435,"Timothy Beckett",1401.521739130435]
["Brian Lamb","Seydlitz","Axis",4,4.5,22,4,9,0,1,0,0,570,"Caleb","None,None,None",8,1601.7391304347825,"Brian Lamb",1601.7391304347825]
["Tom Tanner","Ostfriesland","Axis",4,4,19,2,7,0,1,200,0,440,"Kevin S","Ram Below Craig,None,None",8,1401.7391304347825,"Tom Tanner",1401.7391304347825]
["Steve Andrews","Courbet","Allied",4,4.5,62,11,51,1,1,0,1,3170,"Andy","None,None,None",8,987.40740740740739,"Steve Andrews",787.40740740740739]
["Craig Singer","Nagato","Axis",6,6,114,13,60,1,1,0,1,4200,"Kas","None,None,None",10,2002.1739130434783,"Craig Singer",1802.1739130434783]
["Kevin Plumer","Missouri","Allied",7,8,75,13,33,0,1,0,0,2000,"Andy","None,None,None",10,1234.2592592592591,"Kevin Plumer",1234.2592592592591]

{"sheet":"MN May 1 2","index":23,"n_rows":10,"n_cols":20,"rows_kept":10,"cut":false,"hidden":false,"merged":[]}
[null,null,null,null,null,null,null,null,"Winner:",{"$f":"IF(K2>K3, B2, IF(K3>K2, B3, \"Tie\"))","v":"Flag"},null,"Battle Type","Battle Location and Month (i.e. MD May)","MN May",null,null,null,null,"Fleet"]
["Fleet 1 :","Flag",null,"Fleet Units:",12,"Fleet Weight:",23,"Fleet Battle Damage:",6050,"Fleet Score:",7300,null,"Battle Day",1,null,null,null,null,"Mini-Fleet"]
["Fleet 2 :","No Flag",null,"Fleet Units:",16,"Fleet Weight:",27,"Fleet Battle Damage:",7300,"Fleet Score:",6050,null,"Battle Number",2,null,null,null,null,"Individual"]
["Captian","Ship","Fleet","Class","Units","Above","On","Below","Sinks","Participate all Sorties","Penalties Points","2nd Sortie Sink","Damage Points","Scored By","Notes","Weight Factor","Weight Points","Captian","Captain Points","Indiv Points"]
["Bob Hoernemann","Nagato","No Flag",6,6,23,18,47,0,1,0,0,2000,"Tyler","None,None,None",10,2240.7407407407404,"Bob Hoernemann",2240.7407407407404]
["Bryan Box","Texas","No Flag",5,5.5,34,4,23,2,1,0,1,2910,"Tyler","None,None,None",9,2016.6666666666665,"Bryan Box",1816.6666666666665]
["Zach Hoernemann","Kongo","No Flag",4,4.5,58,7,29,1,1,0,1,2390,"Tyler","None,None,None",8,1792.5925925925924,"Zach Hoernemann",1592.5925925925924]
["Tyler Helland","Derflinger","Flag",4,4.5,25,11,61,1,1,0,1,3100,"Zach","None,None,None",8,2539.1304347826085,"Tyler Helland",2339.1304347826085]
["Peter Ellison","Erin","Flag",4,4.5,54,20,33,1,1,0,1,2730,"Bob","None,None,None",8,2539.1304347826085,"Peter Ellison",2339.1304347826085]
["McCoy Helland","Zara","Flag",3,3,1,0,7,0,1,0,0,220,"Bryan","None,None,None",7,2221.739130434783,"McCoy Helland",2221.739130434783]

{"sheet":"MN May 1 1","index":24,"n_rows":10,"n_cols":20,"rows_kept":10,"cut":false,"hidden":false,"merged":[]}
[null,null,null,null,null,null,null,null,"Winner:",{"$f":"IF(K2>K3, B2, IF(K3>K2, B3, \"Tie\"))","v":"Axis"},null,"Battle Type","Battle Location and Month (i.e. MD May)","MN May",null,null,null,null,"Fleet"]
["Fleet 1 :","Allied",null,"Fleet Units:",12,"Fleet Weight:",23,"Fleet Battle Damage:",6980,"Fleet Score:",5180,null,"Battle Day",1,null,null,null,null,"Mini-Fleet"]
["Fleet 2 :","Axis",null,"Fleet Units:",16,"Fleet Weight:",27,"Fleet Battle Damage:",5180,"Fleet Score:",6980,null,"Battle Number",1,null,null,null,null,"Individual"]
["Captian","Ship","Fleet","Class","Units","Above","On","Below","Sinks","Participate all Sorties","Penalties Points","2nd Sortie Sink","Damage Points","Scored By","Notes","Weight Factor","Weight Points","Captian","Captain Points","Indiv Points"]
["Bob Hoernemann","Nagato","Axis",6,6,22,9,20,1,1,0,1,2000,"Tyler","None,None,None",10,2585.1851851851852,"Bob Hoernemann",2385.1851851851852]
["Bryan Box","Texas","Axis",5,5.5,23,3,7,1,1,0,1,1400,"Peter","None,None,None",9,2326.6666666666665,"Bryan Box",2126.6666666666665]
["Zach Hoernemann","Kongo","Axis",4,4.5,40,2,18,1,1,0,1,1780,"Tyler","None,None,None",8,2068.1481481481478,"Zach Hoernemann",1868.1481481481478]
["Tyler Helland","Derflinger","Allied",4,4.5,17,10,75,1,1,0,1,3420,"Zach","None,None,None",8,1801.7391304347825,"Tyler Helland",1601.7391304347825]
["Peter Ellison","Erin","Allied",4,4.5,25,7,26,1,1,0,1,1970,"Bob","None,None,None",8,1801.7391304347825,"Peter Ellison",1601.7391304347825]
["McCoy Helland","Zara","Allied",3,3,16,5,21,1,1,0,1,1590,"Bryan","None,None,None",7,1576.521739130435,"McCoy Helland",1376.521739130435]

{"sheet":"MI June 1 1","index":25,"n_rows":8,"n_cols":20,"rows_kept":8,"cut":false,"hidden":false,"merged":[]}
[null,null,null,null,null,null,null,null,"Winner:",{"$f":"IF(K2>K3, B2, IF(K3>K2, B3, \"Tie\"))","v":"Allied"},null,"Battle Type","Battle Location and Month (i.e. MD May)","MI June",null,null,null,null,"Fleet"]
["Fleet 1 :","Allied",null,"Fleet Units:",11.5,"Fleet Weight:",19,"Fleet Battle Damage:",1550,"Fleet Score:",5000,null,"Battle Day",1,null,null,null,null,"Mini-Fleet"]
["Fleet 2 :","Axis",null,"Fleet Units:",10.5,"Fleet Weight:",18,"Fleet Battle Damage:",5000,"Fleet Score:",1550,null,"Battle Number",1,null,null,null,null,"Individual"]
["Captian","Ship","Fleet","Class","Units","Above","On","Below","Sinks","Participate all Sorties","Penalties Points","2nd Sortie Sink","Damage Points","Scored By","Notes","Weight Factor","Weight Points","Captian","Captain Points","Indiv Points"]
["Mark Roe","Baden","Allied",5,5.5,49,13,11,0,1,0,0,1080,"Will","None,None,None",9,2368.4210526315787,"Mark Roe",2368.4210526315787]
["Kas Gaigalas","Washington","Allied",6,6,26,0,7,0,1,0,0,470,"Will","None,None,None",10,2631.5789473684208,"Kas Gaigalas",2631.5789473684208]
["Craig Singer","Nagato","Axis",6,6,59,6,34,1,1,0,1,2730,"Kas","None,None,None",10,861.1111111111112,"Craig Singer",661.1111111111112]
["Will Cover","Derflinger","Axis",4,4.5,89,5,16,1,1,0,1,2270,"Kas","None,None,None",8,688.8888888888888,"Will Cover",488.8888888888888]

{"sheet":"MI May 1 3","index":26,"n_rows":7,"n_cols":20,"rows_kept":7,"cut":false,"hidden":false,"merged":[]}
[null,null,null,null,null,null,null,null,"Winner:",{"$f":"IF(K2>K3, B2, IF(K3>K2, B3, \"Tie\"))","v":"Allied"},null,"Battle Type","Battle Location and Month (i.e. MD May)","MI May",null,null,null,null,"Fleet"]
["Fleet 1 :","Allied",null,"Fleet Units:",6,"Fleet Weight:",10,"Fleet Battle Damage:",720,"Fleet Score:",1750,null,"Battle Day",1,null,null,null,null,"Mini-Fleet"]
["Fleet 2 :","Axis",null,"Fleet Units:",11.5,"Fleet Weight:",19,"Fleet Battle Damage:",1750,"Fleet Score:",720,null,"Battle Number",3,null,null,null,null,"Individual"]
["Captian","Ship","Fleet","Class","Units","Above","On","Below","Sinks","Participate all Sorties","Penalties Points","2nd Sortie Sink","Damage Points","Scored By","Notes","Weight Factor","Weight Points","Captian","Captain Points","Indiv Points"]
["Craig Singer","Nagato","Axis",6,6,38,4,9,0,1,0,0,730,"Kas","None,None,None",10,378.9473684210526,"Craig Singer",378.9473684210526]
["Mark Roe","Baden","Axis",5,5.5,48,6,14,0,1,0,0,1020,"Kas","None,None,None",9,341.05263157894734,"Mark Roe",341.05263157894734]
["Kas Gaigalas","Washington","Allied",6,6,34,4,10,0,1,0,0,720,"Mark","None,None,None",10,1750,"Kas Gaigalas",1750]

{"sheet":"MI May 1 2","index":27,"n_rows":7,"n_cols":20,"rows_kept":7,"cut":false,"hidden":false,"merged":[]}
[null,null,null,null,null,null,null,null,"Winner:",{"$f":"IF(K2>K3, B2, IF(K3>K2, B3, \"Tie\"))","v":"Allied"},null,"Battle Type","Battle Location and Month (i.e. MD May)","MI May",null,null,null,null,"Fleet"]
["Fleet 1 :","Allied",null,"Fleet Units:",6,"Fleet Weight:",10,"Fleet Battle Damage:",980,"Fleet Score:",1580,null,"Battle Day",1,null,null,null,null,"Mini-Fleet"]
["Fleet 2 :","Axis",null,"Fleet Units:",11.5,"Fleet Weight:",19,"Fleet Battle Damage:",1580,"Fleet Score:",980,null,"Battle Number",2,null,null,null,null,"Individual"]
["Captian","Ship","Fleet","Class","Units","Above","On","Below","Sinks","Participate all Sorties","Penalties Points","2nd Sortie Sink","Damage Points","Scored By","Notes","Weight Factor","Weight Points","Captian","Captain Points","Indiv Points"]
["Craig Singer","Nagato","Axis",6,6,38,4,9,0,1,0,0,730,"Kas","None,None,None",10,515.78947368421052,"Craig Singer",515.78947368421052]
["Mark Roe","Baden","Axis",5,5.5,48,6,14,0,1,0,0,1020,"Kas","None,None,None",9,464.21052631578942,"Mark Roe",464.21052631578942]
["Kas Gaigalas","Washington","Allied",6,6,54,4,12,0,1,0,0,980,"Craig","None,None,None",10,1580,"Kas Gaigalas",1580]

{"sheet":"MI May 1 1","index":28,"n_rows":7,"n_cols":20,"rows_kept":7,"cut":false,"hidden":false,"merged":[]}
[null,null,null,null,null,null,null,null,"Winner:",{"$f":"IF(K2>K3, B2, IF(K3>K2, B3, \"Tie\"))","v":"Allied"},null,"Battle Type","Battle Location and Month (i.e. MD May)","MI May",null,null,null,null,"Fleet"]
["Fleet 1 :","Allied",null,"Fleet Units:",6,"Fleet Weight:",10,"Fleet Battle Damage:",530,"Fleet Score:",2580,null,"Battle Day",1,null,null,null,null,"Mini-Fleet"]
["Fleet 2 :","Axis",null,"Fleet Units:",11.5,"Fleet Weight:",19,"Fleet Battle Damage:",2580,"Fleet Score:",530,null,"Battle Number",1,null,null,null,null,"Individual"]
["Captian","Ship","Fleet","Class","Units","Above","On","Below","Sinks","Participate all Sorties","Penalties Points","2nd Sortie Sink","Damage Points","Scored By","Notes","Weight Factor","Weight Points","Captian","Captain Points","Indiv Points"]
["Craig Singer","Nagato","Axis",6,6,36,3,10,0,1,0,0,720,"Kas","None,None,None",10,278.9473684210526,"Craig Singer",278.9473684210526]
["Mark Roe","Baden","Axis",5,5.5,21,15,15,1,1,0,1,1860,"Kas","None,None,None",9,251.05263157894734,"Mark Roe",51.052631578947341]
["Kas Gaigalas","Washington","Allied",6,6,23,0,10,0,1,0,0,530,"Mark Roe","None,None,None",10,2580,"Kas Gaigalas",2580]

{"sheet":"MN Sept Sat 3","index":29,"n_rows":11,"n_cols":20,"rows_kept":11,"cut":false,"hidden":false,"merged":[]}
[null,null,null,null,null,null,null,null,"Winner:",{"$f":"IF(K2>K3, B2, IF(K3>K2, B3, \"Tie\"))","v":"Flag"},null,"Battle Type","Battle Location and Month (i.e. MD May)","MN Sept",null,null,null,null,"Fleet"]
["Fleet 1 :","Flag",null,"Fleet Units:",18,"Fleet Weight:",33,"Fleet Battle Damage:",6620,"Fleet Score:",11340,null,"Battle Day","Sat",null,null,null,null,"Mini-Fleet"]
["Fleet 2 :","No Flag",null,"Fleet Units:",12.5,"Fleet Weight:",23,"Fleet Battle Damage:",11340,"Fleet Score:",6620,null,"Battle Number",3,null,null,null,null,"Individual"]
["Captian","Ship","Fleet","Class","Units","Above","On","Below","Sinks","Participate all Sorties","Penalties Points","2nd Sortie Sink","Damage Points","Scored By","Notes","Weight Factor","Weight Points","Captian","Captain Points","Indiv Points"]
["Tyler Helland","Nagato","Flag",6,6,73,16,31,0,1,0,0,1980,"Bob","None,None,None",10,3436.3636363636365,"Tyler Helland",3436.3636363636365]
["Andy Terpstra","Barham","No Flag",5,5.5,136,9,31,1,1,0,1,3370,"Tyler","None,None,None",9,2590.434782608696,"Andy Terpstra",2390.434782608696]
["Bob Hoernemann","Kongo","No Flag",4,4.5,167,24,140,2,1,0,1,7950,"Tyler","None,None,None",8,2302.608695652174,"Bob Hoernemann",2102.608695652174]
["Tom Palmer","Alaska","Flag",4,4.5,33,14,49,0,1,0,0,2080,"Tom","None,None,None",8,2749.090909090909,"Tom Palmer",2749.090909090909]
["Peter Ellison","Erin","Flag",4,4.5,80,14,31,0,1,0,0,2010,"Andy","None,None,None",8,2749.090909090909,"Peter Ellison",2749.090909090909]
["Rick Whitsell","Jamaica","No Flag",2,2.5,2,0,0,0,1,0,0,20,"Rick","None,None,None",6,1726.9565217391305,"Rick Whitsell",1726.9565217391305]
["McCoy Helland","Zara","Flag",3,3,26,4,7,0,1,0,0,550,"Andy","None,None,None",7,2405.4545454545455,"McCoy Helland",2405.4545454545455]

{"sheet":"MN Sept Sat 2","index":30,"n_rows":11,"n_cols":20,"rows_kept":11,"cut":false,"hidden":false,"merged":[]}
[null,null,null,null,null,null,null,null,"Winner:",{"$f":"IF(K2>K3, B2, IF(K3>K2, B3, \"Tie\"))","v":"No Flag"},null,"Battle Type","Battle Location and Month (i.e. MD May)","MN Sept",null,null,null,null,"Fleet"]
["Fleet 1 :","Flag",null,"Fleet Units:",18,"Fleet Weight:",33,"Fleet Battle Damage:",7570,"Fleet Score:",7440,null,"Battle Day","Sat",null,null,null,null,"Mini-Fleet"]
["Fleet 2 :","No Flag",null,"Fleet Units:",12.5,"Fleet Weight:",23,"Fleet Battle Damage:",7440,"Fleet Score:",7570,null,"Battle Number",2,null,null,null,null,"Individual"]
["Captian","Ship","Fleet","Class","Units","Above","On","Below","Sinks","Participate all Sorties","Penalties Points","2nd Sortie Sink","Damage Points","Scored By","Notes","Weight Factor","Weight Points","Captian","Captain Points","Indiv Points"]
["Tyler Helland","Nagato","Flag",6,6,29,4,16,0,1,0,0,850,"Bob","None,None,None",10,2254.5454545454545,"Tyler Helland",2254.5454545454545]
["Andy Terpstra","Barham","No Flag",5,5.5,113,7,32,0,1,0,0,2230,"Tyler","None,None,None",9,2962.1739130434785,"Andy Terpstra",2962.1739130434785]
["Bob Hoernemann","Kongo","No Flag",4,4.5,97,18,82,1,1,0,1,4590,"Tyler","None,None,None",8,2633.0434782608695,"Bob Hoernemann",2433.0434782608695]
["Tom Palmer","Alaska","Flag",4,4.5,65,6,41,1,1,0,1,2800,"Tom","None,None,None",8,1803.6363636363637,"Tom Palmer",1603.6363636363637]
["Peter Ellison","Erin","Flag",4,4.5,50,5,35,1,1,0,1,2450,"Bob","None,None,None",8,1803.6363636363637,"Peter Ellison",1603.6363636363637]
["Rick Whitsell","Jamaica","No Flag",2,2.5,2,0,0,1,1,0,1,620,"Rick","None,None,None",6,1974.782608695652,"Rick Whitsell",1774.782608695652]
["McCoy Helland","Zara","Flag",3,3,24,10,11,1,1,0,1,1470,"Bob","None,None,None",7,1578.1818181818182,"McCoy Helland",1378.1818181818182]

{"sheet":"MN Sept Sat 1","index":31,"n_rows":11,"n_cols":20,"rows_kept":11,"cut":false,"hidden":false,"merged":[]}
[null,null,null,null,null,null,null,null,"Winner:",{"$f":"IF(K2>K3, B2, IF(K3>K2, B3, \"Tie\"))","v":"No Flag"},null,"Battle Type","Battle Location and Month (i.e. MD May)","MN Sept",null,null,null,null,"Fleet"]
["Fleet 1 :","Flag",null,"Fleet Units:",18,"Fleet Weight:",33,"Fleet Battle Damage:",6660,"Fleet Score:",5419.99951171875,null,"Battle Day","Sat",null,null,null,null,"Mini-Fleet"]
["Fleet 2 :","No Flag",null,"Fleet Units:",12.5,"Fleet Weight:",23,"Fleet Battle Damage:",5420,"Fleet Score:",6660,null,"Battle Number",1,null,null,null,null,"Individual"]
["Captian","Ship","Fleet","Class","Units","Above","On","Below","Sinks","Participate all Sorties","Penalties Points","2nd Sortie Sink","Damage Points","Scored By","Notes","Weight Factor","Weight Points","Captian","Captain Points","Indiv Points"]
["Tyler Helland","Nagato","Flag",6,6,55,9,22,0,1,0,0,1390,"Bob","None,None,None",10,1642.4242424242425,"Tyler Helland",1642.4242424242425]
["Andy Terpstra","Barham","No Flag",5,5.5,100,6,27,0,1,0,0,1930,"tyler","None,None,None",9,2606.0869565217395,"Andy Terpstra",2606.0869565217395]
["Bob Hoernemann","Kongo","No Flag",4,4.5,109,7,71,0,1,0,0,3360,"Tyler","None,None,None",8,2316.5217391304345,"Bob Hoernemann",2316.5217391304345]
["Tom Palmer","Alaska","Flag",4,4.5,48,4,25,1,1,0,1,2110,"Tom","None,None,None",8,1313.939393939394,"Tom Palmer",1113.939393939394]
["Peter Ellison","Erin","Flag",4,4.5,57,8,27,1,1,0,1,2340,"Bob","None,None,None",8,1313.939393939394,"Peter Ellison",1113.939393939394]
["McCoy Helland","Zara","Flag",3,3,8,7,20,0,1,0,0,820,"Bob","None,None,None",7,1149.6969696969697,"McCoy Helland",1149.6969696969697]
["Rick Whitsell","Jamaica","No Flag",2,2.5,7,0,2,0,1,0,0,130,"Rick","None,None,None",6,1737.391304347826,"Rick Whitsell",1737.391304347826]

{"sheet":"MD Sept Sun 1","index":32,"n_rows":11,"n_cols":20,"rows_kept":11,"cut":false,"hidden":false,"merged":[]}
[null,null,null,null,null,null,null,null,"Winner:",{"$f":"IF(K2>K3, B2, IF(K3>K2, B3, \"Tie\"))","v":"Axis"},null,"Battle Type","Battle Location and Month (i.e. MD May)","MD Sept",null,null,null,null,"Fleet"]
["Fleet 1 :","Allied",null,"Fleet Units:",15.5,"Fleet Weight:",25.5,"Fleet Battle Damage:",5850,"Fleet Score:",4400,null,"Battle Day","Sun",null,null,null,null,"Mini-Fleet"]
["Fleet 2 :","Axis",null,"Fleet Units:",12.5,"Fleet Weight:",23,"Fleet Battle Damage:",5100,"Fleet Score:",5650,null,"Battle Number",1,null,null,null,null,"Individual"]
["Captian","Ship","Fleet","Class","Units","Above","On","Below","Sinks","Participate all Sorties","Penalties Points","2nd Sortie Sink","Damage Points","Scored By","Notes","Weight Factor","Weight Points","Captian","Captain Points","Indiv Points"]
["Ginger Andrews","Des Moines","Allied",3,3.5,1,0,0,0,0,700,0,10,"Ginger","Withdraw,None,None",3.5,1.1368683772161603E-13,"Ginger Andrews",1.1368683772161603E-13]
["Tom Tanner","Ostfriesland","Axis",4,4.5,57,13,28,1,1,0,1,2470,"Tom","None,None,None",8,2034.782608695652,"Tom Tanner",1834.782608695652]
["Steve Andrews","Courbet","Axis",4,4.5,34,23,29,1,1,200,1,2470,"Steve","Ram Below Kevin,None,None",8,1834.782608695652,"Steve Andrews",1634.782608695652]
["Nate Graham","Gearing","Allied",1,1.5,2,0,0,0,1,0,0,20,"Nate","None,None,None",4,800,"Nate Graham",800]
["Matt Andrews","Iron Duke","Allied",5,5,104,9,31,0,1,0,0,2150,"Matt","None,None,None",9,1800.0000000000002,"Matt Andrews",1800.0000000000002]
["Kevin Plumer","Agincourt","Allied",5,5.5,94,18,49,1,1,0,1,3670,"Kevin","None,None,None",9,1800.0000000000002,"Kevin Plumer",1600.0000000000002]
["Marty Hayes","Des Moines","Axis",3,3.5,10,0,2,0,1,0,0,160,"Kevin","None,None,None",7,1780.4347826086957,"Marty Hayes",1780.4347826086957]

{"sheet":"MD Sept Sat 2","index":33,"n_rows":12,"n_cols":20,"rows_kept":12,"cut":false,"hidden":false,"merged":[]}
[null,null,null,null,null,null,null,null,"Winner:",{"$f":"IF(K2>K3, B2, IF(K3>K2, B3, \"Tie\"))","v":"No Flag"},null,"Battle Type","Battle Location and Month (i.e. MD May)","MD Sept",null,null,null,null,"Fleet"]
["Fleet 1 :","Flag",null,"Fleet Units:",14,"Fleet Weight:",25,"Fleet Battle Damage:",4720,"Fleet Score:",3880,null,"Battle Day","Sat",null,null,null,null,"Mini-Fleet"]
["Fleet 2 :","No Flag",null,"Fleet Units:",16,"Fleet Weight:",28,"Fleet Battle Damage:",4680,"Fleet Score:",4520,null,"Battle Number",2,null,null,null,null,"Individual"]
["Captian","Ship","Fleet","Class","Units","Above","On","Below","Sinks","Participate all Sorties","Penalties Points","2nd Sortie Sink","Damage Points","Scored By","Notes","Weight Factor","Weight Points","Captian","Captain Points","Indiv Points"]
["Ginger Andrews","Des Moines","Flag",3,3.5,4,0,2,0,1,0,0,100,"Ginger","None,None,None",7,1310.4000000000001,"Ginger Andrews",1310.4000000000001]
["Matt Andrews","Iron Duke","Flag",5,5,47,5,19,0,1,800,0,1140,"Matt","Ram Sink Steve,None,None",9,884.8,"Matt Andrews",884.8]
["Steve Andrews","Courbet","No Flag",4,4.5,36,7,19,0,1,0,0,1070,"Kevin","None,None,None",8,1348.5714285714284,"Steve Andrews",1348.5714285714284]
["Marty Hayes","South Carolina","No Flag",4,4,23,5,12,0,1,0,0,690,"Marty","None,None,None",8,1348.5714285714284,"Marty Hayes",1348.5714285714284]
["Nate Graham","Gearing","No Flag",1,1.5,0,0,0,1,0,200,0,400,"Nate","Unseaworthy,None,None",2,137.14285714285711,"Nate Graham",137.14285714285711]
["Nate Graham","Gearing","No Flag",1,1.5,0,0,0,0,0,0,0,0,"Nate","None,None,None",2,337.14285714285711,"Nate Graham",337.14285714285711]
["Kevin Plumer","Agincourt","Flag",5,5.5,99,27,65,0,1,0,0,3480,"Kevin","None,None,None",9,1684.8,"Kevin Plumer",1684.8]
["Tom Tanner","Ostfriesland","No Flag",4,4.5,58,9,32,1,1,0,1,2520,"Tom","None,None,None",8,1348.5714285714284,"Tom Tanner",1148.5714285714284]

{"sheet":"MD Sept Sat 1","index":34,"n_rows":12,"n_cols":20,"rows_kept":12,"cut":false,"hidden":false,"merged":[]}
[null,null,null,null,null,null,null,null,"Winner:",{"$f":"IF(K2>K3, B2, IF(K3>K2, B3, \"Tie\"))","v":"Flag"},null,"Battle Type","Battle Location and Month (i.e. MD May)","MD Sept",null,null,null,null,"Fleet"]
["Fleet 1 :","Flag",null,"Fleet Units:",14,"Fleet Weight:",28,"Fleet Battle Damage:",3650,"Fleet Score:",5480,null,"Battle Day","Sat",null,null,null,null,"Mini-Fleet"]
["Fleet 2 :","No Flag",null,"Fleet Units:",15.5,"Fleet Weight:",19,"Fleet Battle Damage:",5480,"Fleet Score:",3250,null,"Battle Number",1,null,null,null,null,"Individual"]
["Captian","Ship","Fleet","Class","Units","Above","On","Below","Sinks","Participate all Sorties","Penalties Points","2nd Sortie Sink","Damage Points","Scored By","Notes","Weight Factor","Weight Points","Captian","Captain Points","Indiv Points"]
["Steve Andrews","Courbet","No Flag",4,4.5,30,7,28,1,1,200,1,2080,"Matt","Ram Below Kevin,None,None",8,1336.8421052631579,"Steve Andrews",1136.8421052631579]
["Nate Graham","Gearing","Flag",1,1.5,0,0,1,0,1,0,0,30,"Ginger","None,None,None",4,782.85714285714278,"Nate Graham",782.85714285714278]
["Tom Tanner","Ostfriesland","No Flag",4,4.5,36,10,17,1,0,200,0,1870,"Nate","Ram Below,None,None",4,568.42105263157896,"Tom Tanner",568.42105263157896]
["Tom Tanner","Scharnhorst","No Flag",3,3,11,3,13,1,0,0,0,1260,"Nate","None,None,None",3.5,672.36842105263156,"Tom Tanner",672.36842105263156]
["Ginger Andrews","Des Moines","No Flag",3,3.5,6,3,5,0,0,0,0,270,"Kevin","None,None,None",3.5,672.36842105263156,"Ginger Andrews",672.36842105263156]
["Kevin Plumer","Agincourt","Flag",5,5.5,70,20,36,0,1,0,0,2180,"Kevin","None,None,None",9,1761.4285714285716,"Kevin Plumer",1761.4285714285716]
["Holly Moore","Astoria","Flag",3,3,1,0,0,0,1,0,0,10,"Matt","None,None,None",7,1370,"Holly Moore",1370]
["Marty Hayes","South Carolina","Flag",4,4,28,7,7,1,1,0,1,1430,"Steve","None,None,None",8,1565.7142857142856,"Marty Hayes",1365.7142857142856]

{"sheet":"NY Oct Sun 1","index":35,"n_rows":8,"n_cols":20,"rows_kept":8,"cut":false,"hidden":false,"merged":[]}
[null,null,null,null,null,null,null,null,"Winner:",{"$f":"IF(K2>K3, B2, IF(K3>K2, B3, \"Tie\"))","v":"Flag"},null,"Battle Type","Battle Location and Month (i.e. MD May)","NY Oct",null,null,null,null,"Fleet"]
["Fleet 1 :","Flag",null,"Fleet Units:",10,"Fleet Weight:",17,"Fleet Battle Damage:",760,"Fleet Score:",4230,null,"Battle Day","Sun",null,null,null,null,"Mini-Fleet"]
["Fleet 2 :","No Flag",null,"Fleet Units:",12,"Fleet Weight:",18,"Fleet Battle Damage:",4230,"Fleet Score:",760,null,"Battle Number",1,null,null,null,null,"Individual"]
["Captian","Ship","Fleet","Class","Units","Above","On","Below","Sinks","Participate all Sorties","Penalties Points","2nd Sortie Sink","Damage Points","Scored By","Notes","Weight Factor","Weight Points","Captian","Captain Points","Indiv Points"]
["David Simmons","Espana","No Flag",4,4,36,6,8,1,1,0,1,1520,"Rob","None,None,None",8,337.77777777777777,"David Simmons",137.77777777777777]
["Rob Arena","Arizona","Flag",5,5.5,20,1,6,0,1,0,0,400,"Dave","None,None,None",9,2239.4117647058824,"Rob Arena",2239.4117647058824]
["Steve Andrews","Courbet","Flag",4,4.5,10,1,8,0,1,0,0,360,"Carl","None,None,None",8,1990.5882352941176,"Steve Andrews",1990.5882352941176]
["Carl Camurati","Musashi","No Flag",7,8,103,30,36,0,1,0,0,2710,"Steve","None,None,None",10,422.22222222222223,"Carl Camurati",422.22222222222223]

{"sheet":"NY Oct Sat 2","index":36,"n_rows":8,"n_cols":20,"rows_kept":8,"cut":false,"hidden":false,"merged":[]}
[null,null,null,null,null,null,null,null,"Winner:",{"$f":"IF(K2>K3, B2, IF(K3>K2, B3, \"Tie\"))","v":"Allied"},null,"Battle Type","Battle Location and Month (i.e. MD May)","NY Oct",null,null,null,null,"Fleet"]
["Fleet 1 :","Allied",null,"Fleet Units:",10,"Fleet Weight:",17,"Fleet Battle Damage:",2400,"Fleet Score:",3910,null,"Battle Day","Sat",null,null,null,null,"Mini-Fleet"]
["Fleet 2 :","Axis",null,"Fleet Units:",8,"Fleet Weight:",16,"Fleet Battle Damage:",4110,"Fleet Score:",2400,null,"Battle Number",2,null,null,null,null,"Individual"]
["Captian","Ship","Fleet","Class","Units","Above","On","Below","Sinks","Participate all Sorties","Penalties Points","2nd Sortie Sink","Damage Points","Scored By","Notes","Weight Factor","Weight Points","Captian","Captain Points","Indiv Points"]
["David Simmons","Espana","Axis",4,4,51,7,27,2,1,0,1,3060,"Steve","None,None,None",8,1200,"David Simmons",1000]
["Carl Camurati","Nassau","Axis",4,4,29,8,20,0,1,0,0,1050,"Steve","None,None,None",8,1200,"Carl Camurati",1200]
["Steve Andrews","Courbet","Allied",4,4.5,23,7,14,0,1,0,0,790,"Dave","None,None,None",8,1934.1176470588234,"Steve Andrews",1934.1176470588234]
["Rob Arena","Arizona","Allied",5,5.5,32,0,13,1,1,200,1,1610,"Dave","Ram Below Carl,None,None",9,1975.8823529411766,"Rob Arena",1775.8823529411766]

{"sheet":"NY Oct Sat 1","index":37,"n_rows":8,"n_cols":20,"rows_kept":8,"cut":false,"hidden":false,"merged":[]}
[null,null,null,null,null,null,null,null,"Winner:",{"$f":"IF(K2>K3, B2, IF(K3>K2, B3, \"Tie\"))","v":"No Flag"},null,"Battle Type","Battle Location and Month (i.e. MD May)","NY Oct",null,null,null,null,"Fleet"]
["Fleet 1 :","Flag",null,"Fleet Units:",10,"Fleet Weight:",17,"Fleet Battle Damage:",3440,"Fleet Score:",2110,null,"Battle Day","Sat",null,null,null,null,"Mini-Fleet"]
["Fleet 2 :","No Flag",null,"Fleet Units:",8,"Fleet Weight:",16,"Fleet Battle Damage:",2110,"Fleet Score:",3440,null,"Battle Number",1,null,null,null,null,"Individual"]
["Captian","Ship","Fleet","Class","Units","Above","On","Below","Sinks","Participate all Sorties","Penalties Points","2nd Sortie Sink","Damage Points","Scored By","Notes","Weight Factor","Weight Points","Captian","Captain Points","Indiv Points"]
["Steve Andrews","Courbet","Flag",4,4.5,18,7,15,1,1,0,1,1570,"Steve","None,None,None",8,992.94117647058818,"Steve Andrews",792.94117647058818]
["David Simmons","Espana","No Flag",4,4,36,10,13,0,1,0,0,950,"Steve","None,None,None",8,1720,"David Simmons",1720]
["Rob Arena","Arizona","Flag",5,5.5,42,5,15,1,1,0,1,1870,"carl","None,None,None",9,1117.0588235294117,"Rob Arena",917.05882352941171]
["Carl Camurati","Nassau","No Flag",4,4,26,3,28,0,1,0,0,1160,"Rob","None,None,None",8,1720,"Carl Camurati",1720]

{"sheet":"TX Nov Sat 2","index":38,"n_rows":6,"n_cols":20,"rows_kept":6,"cut":false,"hidden":false,"merged":[]}
[null,null,null,null,null,null,null,null,"Winner:",{"$f":"IF(K2>K3, B2, IF(K3>K2, B3, \"Tie\"))","v":"Tie"},null,"Battle Type","Battle Location and Month (i.e. MD May)","TX Nov",null,null,null,null,"Fleet"]
["Fleet 1 :","Allied",null,"Fleet Units:",0,"Fleet Weight:",0,"Fleet Battle Damage:",0,"Fleet Score:",0,null,"Battle Day","Sat",null,null,null,null,"Mini-Fleet"]
["Fleet 2 :","Axis",null,"Fleet Units:",6,"Fleet Weight:",13,"Fleet Battle Damage:",630,"Fleet Score:",0,null,"Battle Number",2,null,null,null,null,"Individual"]
["Captian","Ship","Fleet","Class","Units","Above","On","Below","Sinks","Participate all Sorties","Penalties Points","2nd Sortie Sink","Damage Points","Scored By","Notes","Weight Factor","Weight Points","Captian","Captain Points","Indiv Points"]
["Ted Buehring","Lutzow","Axis",3,3.5,35,1,7,0,1,0,0,580,"John","None,None,None",7,0,"Ted Buehring",0]
["John Zaruba","Duca","Axis",2,2.5,5,0,0,0,1,0,0,50,"Ted","None,None,None",6,0,"John Zaruba",0]

{"sheet":"TX Nov Sat 1","index":39,"n_rows":6,"n_cols":20,"rows_kept":6,"cut":false,"hidden":false,"merged":[]}
[null,null,null,null,null,null,null,null,"Winner:",{"$f":"IF(K2>K3, B2, IF(K3>K2, B3, \"Tie\"))","v":"Allied"},null,"Battle Type","Battle Location and Month (i.e. MD May)","TX Nov",null,null,null,null,"Fleet"]
["Fleet 1 :","Allied",null,"Fleet Units:",2.5,"Fleet Weight:",6,"Fleet Battle Damage:",70,"Fleet Score:",290,null,"Battle Day","Sat",null,null,null,null,"Mini-Fleet"]
["Fleet 2 :","Axis",null,"Fleet Units:",3.5,"Fleet Weight:",7,"Fleet Battle Damage:",290,"Fleet Score:",70,null,"Battle Number",1,null,null,null,null,"Individual"]
["Captian","Ship","Fleet","Class","Units","Above","On","Below","Sinks","Participate all Sorties","Penalties Points","2nd Sortie Sink","Damage Points","Scored By","Notes","Weight Factor","Weight Points","Captian","Captain Points","Indiv Points"]
["Ted Buehring","Lutzow","Axis",3,3.5,26,0,1,0,1,0,0,290,"John","None,None,None",7,70,"Ted Buehring",70]
["John Zaruba","Duca","Allied",2,2.5,7,0,0,0,1,0,0,70,"Ted","None,None,None",6,290,"John Zaruba",290]

{"sheet":"MI Oct Sat 2","index":40,"n_rows":7,"n_cols":20,"rows_kept":7,"cut":false,"hidden":false,"merged":[]}
[null,null,null,null,null,null,null,null,"Winner:",{"$f":"IF(K2>K3, B2, IF(K3>K2, B3, \"Tie\"))","v":"Allied"},null,"Battle Type","Battle Location and Month (i.e. MD May)","MI Oct",null,null,null,null,"Fleet"]
["Fleet 1 :","Allied",null,"Fleet Units:",5.5,"Fleet Weight:",13,"Fleet Battle Damage:",90,"Fleet Score:",190,null,"Battle Day","Sat",null,null,null,null,"Mini-Fleet"]
["Fleet 2 :","Axis",null,"Fleet Units:",4,"Fleet Weight:",8,"Fleet Battle Damage:",190,"Fleet Score:",90,null,"Battle Number",2,null,null,null,null,"Individual"]
["Captian","Ship","Fleet","Class","Units","Above","On","Below","Sinks","Participate all Sorties","Penalties Points","2nd Sortie Sink","Damage Points","Scored By","Notes","Weight Factor","Weight Points","Captian","Captain Points","Indiv Points"]
["Andrew Le","Brooklyn","Allied",3,3,1,0,0,0,1,0,0,10,"Kas","None,None,None",7,102.30769230769231,"Andrew Le",102.30769230769231]
["Kas Gaigalas","Glorie","Allied",2,2.5,2,0,2,0,1,0,0,80,"Mark","None,None,None",6,87.692307692307693,"Kas Gaigalas",87.692307692307693]
["Mark Roe","VDT","Axis",4,4,19,0,0,0,1,0,0,190,"Andrew","None,None,None",8,90,"Mark Roe",90]

{"sheet":"MI Oct Sat 1","index":41,"n_rows":7,"n_cols":20,"rows_kept":7,"cut":false,"hidden":false,"merged":[]}
[null,null,null,null,null,null,null,null,"Winner:",{"$f":"IF(K2>K3, B2, IF(K3>K2, B3, \"Tie\"))","v":"Allied"},null,"Battle Type","Battle Location and Month (i.e. MD May)","MI Oct",null,null,null,null,"Fleet"]
["Fleet 1 :","Allied",null,"Fleet Units:",5.5,"Fleet Weight:",13,"Fleet Battle Damage:",90,"Fleet Score:",230,null,"Battle Day","Sat",null,null,null,null,"Mini-Fleet"]
["Fleet 2 :","Axis",null,"Fleet Units:",4,"Fleet Weight:",8,"Fleet Battle Damage:",230,"Fleet Score:",90,null,"Battle Number",1,null,null,null,null,"Individual"]
["Captian","Ship","Fleet","Class","Units","Above","On","Below","Sinks","Participate all Sorties","Penalties Points","2nd Sortie Sink","Damage Points","Scored By","Notes","Weight Factor","Weight Points","Captian","Captain Points","Indiv Points"]
["Kas Gaigalas","Glorie","Allied",2,2.5,2,0,0,0,1,0,0,20,"Andrew","None,None,None",6,106.15384615384616,"Kas Gaigalas",106.15384615384616]
["Andrew Le","Brooklyn","Allied",3,3,4,0,1,0,1,0,0,70,"Mark","None,None,None",7,123.84615384615384,"Andrew Le",123.84615384615384]
["Mark Roe","VDT","Axis",4,4,13,5,0,0,1,0,0,230,"Kas","None,None,None",8,90,"Mark Roe",90]

{"sheet":"MI Sept2 Sat 1","index":42,"n_rows":7,"n_cols":20,"rows_kept":7,"cut":false,"hidden":false,"merged":[]}
[null,null,null,null,null,null,null,null,"Winner:",{"$f":"IF(K2>K3, B2, IF(K3>K2, B3, \"Tie\"))","v":"Allied"},null,"Battle Type","Battle Location and Month (i.e. MD May)","MI Sept2",null,null,null,null,"Fleet"]
["Fleet 1 :","Allied",null,"Fleet Units:",6,"Fleet Weight:",10,"Fleet Battle Damage:",670,"Fleet Score:",1570,null,"Battle Day","Sat",null,null,null,null,"Mini-Fleet"]
["Fleet 2 :","Axis",null,"Fleet Units:",11.5,"Fleet Weight:",19,"Fleet Battle Damage:",1570,"Fleet Score:",670,null,"Battle Number",1,null,null,null,null,"Individual"]
["Captian","Ship","Fleet","Class","Units","Above","On","Below","Sinks","Participate all Sorties","Penalties Points","2nd Sortie Sink","Damage Points","Scored By","Notes","Weight Factor","Weight Points","Captian","Captain Points","Indiv Points"]
["Kas Gaigalas","Washington","Allied",6,6,35,4,8,0,1,0,0,670,"Craig","None,None,None",10,1570,"Kas Gaigalas",1570]
["Craig Singer","Nagato","Axis",6,6,19,4,12,0,1,0,0,630,"Kas","None,None,None",10,352.63157894736838,"Craig Singer",352.63157894736838]
["Mark Roe","Baden","Axis",5,5.5,62,1,10,0,1,0,0,940,"Kas","None,None,None",9,317.36842105263156,"Mark Roe",317.36842105263156]

{"sheet":"MI Sept Sat 3","index":43,"n_rows":8,"n_cols":20,"rows_kept":8,"cut":false,"hidden":false,"merged":[]}
[null,null,null,null,null,null,null,null,"Winner:",{"$f":"IF(K2>K3, B2, IF(K3>K2, B3, \"Tie\"))","v":"Allied"},null,"Battle Type","Battle Location and Month (i.e. MD May)","MI Sept",null,null,null,null,"Fleet"]
["Fleet 1 :","Allied",null,"Fleet Units:",10.5,"Fleet Weight:",18,"Fleet Battle Damage:",1250,"Fleet Score:",3610,null,"Battle Day","Sat",null,null,null,null,"Mini-Fleet"]
["Fleet 2 :","Axis",null,"Fleet Units:",10,"Fleet Weight:",18,"Fleet Battle Damage:",3610,"Fleet Score:",1250,null,"Battle Number",3,null,null,null,null,"Individual"]
["Captian","Ship","Fleet","Class","Units","Above","On","Below","Sinks","Participate all Sorties","Penalties Points","2nd Sortie Sink","Damage Points","Scored By","Notes","Weight Factor","Weight Points","Captian","Captain Points","Indiv Points"]
["Craig Singer","Nagato","Axis",6,6,100,13,36,1,1,0,1,3340,"Kas","None,None,None",10,694.44444444444446,"Craig Singer",494.44444444444446]
["Mark Roe","VDT","Axis",4,4,9,3,4,0,1,0,0,270,"Kas","None,None,None",8,555.55555555555554,"Mark Roe",555.55555555555554]
["Kas Gaigalas","Washington","Allied",6,6,22,0,4,0,1,0,0,340,"Craig","None,None,None",10,2005.5555555555557,"Kas Gaigalas",2005.5555555555557]
["Will Cover","Derflinger","Allied",4,4.5,35,1,18,0,1,0,0,910,"Craig","None,None,None",8,1604.4444444444443,"Will Cover",1604.4444444444443]

{"sheet":"MI Sept Sat 2","index":44,"n_rows":8,"n_cols":20,"rows_kept":8,"cut":false,"hidden":false,"merged":[]}
[null,null,null,null,null,null,null,null,"Winner:",{"$f":"IF(K2>K3, B2, IF(K3>K2, B3, \"Tie\"))","v":"Allied"},null,"Battle Type","Battle Location and Month (i.e. MD May)","MI Sept",null,null,null,null,"Fleet"]
["Fleet 1 :","Allied",null,"Fleet Units:",10,"Fleet Weight:",18,"Fleet Battle Damage:",1400,"Fleet Score:",3190,null,"Battle Day","Sat",null,null,null,null,"Mini-Fleet"]
["Fleet 2 :","Axis",null,"Fleet Units:",12,"Fleet Weight:",20,"Fleet Battle Damage:",3190,"Fleet Score:",1400,null,"Battle Number",2,null,null,null,null,"Individual"]
["Captian","Ship","Fleet","Class","Units","Above","On","Below","Sinks","Participate all Sorties","Penalties Points","2nd Sortie Sink","Damage Points","Scored By","Notes","Weight Factor","Weight Points","Captian","Captain Points","Indiv Points"]
["Will Cover","South Dakota","Axis",6,6,78,5,9,1,1,0,1,2150,"Mark","None,None,None",10,700,"Will Cover",500]
["Craig Singer","Nagato","Axis",6,6,57,4,13,0,1,0,0,1040,"Mark","None,None,None",10,700,"Craig Singer",700]
["Kas Gaigalas","Washington","Allied",6,6,40,3,6,0,1,0,0,640,"Craig","None,None,None",10,1772.2222222222224,"Kas Gaigalas",1772.2222222222224]
["Mark Roe","VDT","Allied",4,4,24,2,16,0,1,0,0,760,"Craig","None,None,None",8,1417.7777777777776,"Mark Roe",1417.7777777777776]

{"sheet":"MI Sept Sat 1","index":45,"n_rows":8,"n_cols":20,"rows_kept":8,"cut":false,"hidden":false,"merged":[]}
[null,null,null,null,null,null,null,null,"Winner:",{"$f":"IF(K2>K3, B2, IF(K3>K2, B3, \"Tie\"))","v":"Allied"},null,"Battle Type","Battle Location and Month (i.e. MD May)","MI Sept",null,null,null,null,"Fleet"]
["Fleet 1 :","Allied",null,"Fleet Units:",10,"Fleet Weight:",18,"Fleet Battle Damage:",1420,"Fleet Score:",3590,null,"Battle Day","Sat",null,null,null,null,"Mini-Fleet"]
["Fleet 2 :","Axis",null,"Fleet Units:",12,"Fleet Weight:",20,"Fleet Battle Damage:",3590,"Fleet Score:",1420,null,"Battle Number",1,null,null,null,null,"Individual"]
["Captian","Ship","Fleet","Class","Units","Above","On","Below","Sinks","Participate all Sorties","Penalties Points","2nd Sortie Sink","Damage Points","Scored By","Notes","Weight Factor","Weight Points","Captian","Captain Points","Indiv Points"]
["Kas Gaigalas","Washington","Allied",6,6,16,2,8,0,1,0,0,440,"Will","None,None,None",10,1994.4444444444446,"Kas Gaigalas",1994.4444444444446]
["Mark Roe","VDT","Allied",4,4,38,6,16,0,1,0,0,980,"Will","None,None,None",8,1595.5555555555554,"Mark Roe",1595.5555555555554]
["Craig Singer","Nagato","Axis",6,6,76,9,14,0,1,0,0,1360,"Kas","None,None,None",10,710,"Craig Singer",710]
["Will Cover","South Dakota","Axis",6,6,51,6,20,1,1,0,1,2230,"Mark","None,None,None",10,710,"Will Cover",510]

{"sheet":"MI Aug Sat 3","index":46,"n_rows":8,"n_cols":20,"rows_kept":8,"cut":false,"hidden":false,"merged":[]}
[null,null,null,null,null,null,null,null,"Winner:",{"$f":"IF(K2>K3, B2, IF(K3>K2, B3, \"Tie\"))","v":"Axis"},null,"Battle Type","Battle Location and Month (i.e. MD May)","MI Aug",null,null,null,null,"Fleet"]
["Fleet 1 :","Allied",null,"Fleet Units:",10.5,"Fleet Weight:",18,"Fleet Battle Damage:",1440,"Fleet Score:",790,null,"Battle Day","Sat",null,null,null,null,"Mini-Fleet"]
["Fleet 2 :","Axis",null,"Fleet Units:",10,"Fleet Weight:",18,"Fleet Battle Damage:",790,"Fleet Score:",1440,null,"Battle Number",3,null,null,null,null,"Individual"]
["Captian","Ship","Fleet","Class","Units","Above","On","Below","Sinks","Participate all Sorties","Penalties Points","2nd Sortie Sink","Damage Points","Scored By","Notes","Weight Factor","Weight Points","Captian","Captain Points","Indiv Points"]
["Craig Singer","Nagato","Allied",6,6,55,9,4,0,1,0,0,850,"Will","None,None,None",10,438.88888888888891,"Craig Singer",438.88888888888891]
["Will Cover","Derflinger","Allied",4,4.5,45,1,4,0,1,0,0,590,"Kas","None,None,None",8,351.11111111111109,"Will Cover",351.11111111111109]
["Mark Roe","VDT","Axis",4,4,7,2,5,0,1,0,0,260,"Will","None,None,None",8,640,"Mark Roe",640]
["Kas Gaigalas","Washington","Axis",6,6,36,1,5,0,1,0,0,530,"Craig","None,None,None",10,800,"Kas Gaigalas",800]

{"sheet":"MI Aug Sat 2","index":47,"n_rows":8,"n_cols":20,"rows_kept":8,"cut":false,"hidden":false,"merged":[]}
[null,null,null,null,null,null,null,null,"Winner:",{"$f":"IF(K2>K3, B2, IF(K3>K2, B3, \"Tie\"))","v":"Axis"},null,"Battle Type","Battle Location and Month (i.e. MD May)","MI Aug",null,null,null,null,"Fleet"]
["Fleet 1 :","Allied",null,"Fleet Units:",10.5,"Fleet Weight:",18,"Fleet Battle Damage:",1580,"Fleet Score:",1130,null,"Battle Day","Sat",null,null,null,null,"Mini-Fleet"]
["Fleet 2 :","Axis",null,"Fleet Units:",10,"Fleet Weight:",18,"Fleet Battle Damage:",1430,"Fleet Score:",1580,null,"Battle Number",2,null,null,null,null,"Individual"]
["Captian","Ship","Fleet","Class","Units","Above","On","Below","Sinks","Participate all Sorties","Penalties Points","2nd Sortie Sink","Damage Points","Scored By","Notes","Weight Factor","Weight Points","Captian","Captain Points","Indiv Points"]
["Mark Roe","VDT","Axis",4,4,44,5,9,0,1,0,0,810,"Kas","None,None,None",8,702.22222222222217,"Mark Roe",702.22222222222217]
["Craig Singer","Nagato","Axis",6,6,34,5,6,0,1,0,0,620,"Will","None,None,None",10,877.77777777777783,"Craig Singer",877.77777777777783]
["Will Cover","Derflinger","Allied",4,4.5,68,2,10,0,1,300,0,1020,"Craig","Ram Below,Ram Above,None",8,335.55555555555554,"Will Cover",335.55555555555554]
["Kas Gaigalas","Washington","Allied",6,6,31,5,5,0,1,0,0,560,"Mark","None,None,None",10,794.44444444444446,"Kas Gaigalas",794.44444444444446]

{"sheet":"MI Aug Sat 1","index":48,"n_rows":8,"n_cols":20,"rows_kept":8,"cut":false,"hidden":false,"merged":[]}
[null,null,null,null,null,null,null,null,"Winner:",{"$f":"IF(K2>K3, B2, IF(K3>K2, B3, \"Tie\"))","v":"Allied"},null,"Battle Type","Battle Location and Month (i.e. MD May)","MI Aug",null,null,null,null,"Fleet"]
["Fleet 1 :","Allied",null,"Fleet Units:",10,"Fleet Weight:",18,"Fleet Battle Damage:",680,"Fleet Score:",1440,null,"Battle Day","Sat",null,null,null,null,"Mini-Fleet"]
["Fleet 2 :","Axis",null,"Fleet Units:",10.5,"Fleet Weight:",18,"Fleet Battle Damage:",1440,"Fleet Score:",680,null,"Battle Number",1,null,null,null,null,"Individual"]
["Captian","Ship","Fleet","Class","Units","Above","On","Below","Sinks","Participate all Sorties","Penalties Points","2nd Sortie Sink","Damage Points","Scored By","Notes","Weight Factor","Weight Points","Captian","Captain Points","Indiv Points"]
["Craig Singer","Nagato","Axis",6,6,46,4,6,0,1,0,0,720,"Kas","None,None,None",10,377.77777777777777,"Craig Singer",377.77777777777777]
["Mark Roe","VDT","Allied",4,4,10,1,6,0,1,0,0,300,"Will","None,None,None",8,640,"Mark Roe",640]
["Will Cover","Derflinger","Axis",4,4.5,54,3,4,0,1,0,0,720,"Kas","None,None,None",8,302.22222222222223,"Will Cover",302.22222222222223]
["Kas Gaigalas","Washington","Allied",6,6,20,3,4,0,1,0,0,380,"Craig","None,None,None",10,800,"Kas Gaigalas",800]

{"sheet":"MI July Sat 2","index":49,"n_rows":9,"n_cols":20,"rows_kept":9,"cut":false,"hidden":false,"merged":[]}
[null,null,null,null,null,null,null,null,"Winner:",{"$f":"IF(K2>K3, B2, IF(K3>K2, B3, \"Tie\"))","v":"Allied"},null,"Battle Type","Battle Location and Month (i.e. MD May)","MI July",null,null,null,null,"Fleet"]
["Fleet 1 :","Allied",null,"Fleet Units:",10,"Fleet Weight:",18,"Fleet Battle Damage:",1520,"Fleet Score:",4610,null,"Battle Day","Sat",null,null,null,null,"Mini-Fleet"]
["Fleet 2 :","Axis",null,"Fleet Units:",14.5,"Fleet Weight:",26,"Fleet Battle Damage:",4610,"Fleet Score:",1320,null,"Battle Number",2,null,null,null,null,"Individual"]
["Captian","Ship","Fleet","Class","Units","Above","On","Below","Sinks","Participate all Sorties","Penalties Points","2nd Sortie Sink","Damage Points","Scored By","Notes","Weight Factor","Weight Points","Captian","Captain Points","Indiv Points"]
["Kas Gaigalas","Washington","Allied",6,6,33,2,12,0,1,0,0,730,"Will","None,None,None",10,2561.1111111111113,"Kas Gaigalas",2561.1111111111113]
["Weston Dodge","Australia","Allied",4,4,32,1,15,0,1,0,0,790,"Will","None,None,None",8,2048.8888888888887,"Weston Dodge",2048.8888888888887]
["Will Cover","Derflinger","Axis",4,4.5,48,4,22,0,1,0,0,1220,"Kas","None,None,None",8,467.69230769230774,"Will Cover",467.69230769230774]
["Mark Roe","VDT","Axis",4,4,34,2,4,0,1,0,0,500,"Kas","None,None,None",8,467.69230769230774,"Mark Roe",467.69230769230774]
["Craig Singer","Nagato","Axis",6,6,80,11,29,1,1,200,1,2890,"Kas","Ram Below,None,None",10,384.61538461538464,"Craig Singer",184.61538461538464]

{"sheet":"MI July Sat 1","index":50,"n_rows":9,"n_cols":20,"rows_kept":9,"cut":false,"hidden":false,"merged":[]}
[null,null,null,null,null,null,null,null,"Winner:",{"$f":"IF(K2>K3, B2, IF(K3>K2, B3, \"Tie\"))","v":"Allied"},null,"Battle Type","Battle Location and Month (i.e. MD May)","MI July",null,null,null,null,"Fleet"]
["Fleet 1 :","Allied",null,"Fleet Units:",10,"Fleet Weight:",14,"Fleet Battle Damage:",2160,"Fleet Score:",2380,null,"Battle Day","Sat",null,null,null,null,"Mini-Fleet"]
["Fleet 2 :","Axis",null,"Fleet Units:",14,"Fleet Weight:",25,"Fleet Battle Damage:",2380,"Fleet Score:",2160,null,"Battle Number",1,null,null,null,null,"Individual"]
["Captian","Ship","Fleet","Class","Units","Above","On","Below","Sinks","Participate all Sorties","Penalties Points","2nd Sortie Sink","Damage Points","Scored By","Notes","Weight Factor","Weight Points","Captian","Captain Points","Indiv Points"]
["Kas Gaigalas","Washington","Allied",6,6,40,6,10,0,1,0,0,820,"Craig","None,None,None",10,1700,"Kas Gaigalas",1700]
["Weston Dodge","Australia","Allied",4,4,26,2,8,1,0,0,0,1340,"Craig","None,None,None",4,680,"Weston Dodge",680]
["Craig Singer","Nagato","Axis",5,5.5,36,4,7,0,1,0,0,650,"Weston","None,None,None",9,777.6,"Craig Singer",777.6]
["Will Cover","Derflinger","Axis",4,4.5,43,6,10,0,1,0,0,850,"Kas","None,None,None",8,691.2,"Will Cover",691.2]
["Mark Roe","VDT","Axis",4,4,35,4,15,0,1,0,0,880,"Craig","None,None,None",8,691.2,"Mark Roe",691.2]